Cogmind - Beta 10.1 @@@ ROGUE MODE // 2021.06.17 @ 13:07:26 // Winter2019/RPGLIKE Player: Farfid Result: Heading to fleet! Performance ------------- Evolutions (9) 4500 Regions Visited (36) 7200 Robots Destroyed (708) 3540 Value Destroyed (37746) 37746 Prototype IDs (80) 1600 Alien Tech Used (4) 800 Bonus (33018) 33018 TOTAL SCORE: 88404 Bonus ------- Triggered High Security 1000 High Alert Combat Kills 15498 Follower Combat Kills 2517 Entered Garrisons 2000 Used RIF Installer 3500 Network Hubs Disabled 200 Aligned with FarCom 300 Built Enhanced Grunts 300 Used Core Reset Matrix 3000 Destroyed MAIN.C Guards 500 Met MAIN.C 5000 Win 3000 Friendly Fire -3797 Cogmind --------- Core Integrity 1020/2200 Matter 392/400 Energy 400/420 System Corruption 14% Temperature Cool (20) Movement Hovering (44) Location To Fleet Rendezvous Parts ------- > --- POWER (3) -------- Compact Particle Reactor Compact Particle Reactor Quantum Reactor > --- PROPULSION (6) --- Combat Gravmag System Improved Linear Gravjet Improved Linear Gravjet Combat Antigrav System Antigrav Array > --- UTILITY (11) ----- Advanced Power Amplifier Experimental Signal Interpreter Experimental Terrain Scanner Experimental Targeting Computer Improved Armor Integrity Analyzer Energy Filter Advanced Weapon Cycler AEGIS Remote Shield Long-range Tractor Beam Matter Drive > --- WEAPON (5) ------- Phase Gun Improved KE Penetrator Improved KE Penetrator 8R-AWN's Boregun 8R-AWN's Boregun > --- INVENTORY (7) ---- Recoil Nullifier Matter Filter Improved System Restoration Module Stasis Generator Gamma Bomb Array Peak State ------------ > --- POWER ------------ Compact Particle Reactor Compact Particle Reactor Quantum Reactor > --- PROPULSION ------- Combat Gravmag System Improved Linear Gravjet Improved Linear Gravjet Combat Antigrav System Antigrav Array > --- UTILITY ---------- Advanced Power Amplifier Experimental Signal Interpreter Experimental Terrain Scanner Experimental Targeting Computer Improved Armor Integrity Analyzer Energy Filter Advanced Weapon Cycler AEGIS Remote Shield Long-range Tractor Beam Matter Drive > --- WEAPON ----------- Phase Gun Improved KE Penetrator Improved KE Penetrator 8R-AWN's Boregun 8R-AWN's Boregun > --- INVENTORY -------- Recoil Nullifier Matter Filter Improved System Restoration Module Stasis Generator Gamma Bomb Array [Rating: 200] Favorites ----------- Power Compact Particle Reactor Engine Light Angular Momentum Engine Power Core Micro Fission Core Reactor Compact Particle Reactor Propulsion Gravmag Array Treads Medium Treads Leg Advanced Myomer Leg Wheel Wheel Hover Unit Gravmag Array Flight Unit Xenon Bombardment Thruster Utility Experimental Targeting Computer Device Advanced Weapon Cycler Storage Improved Energy Well Processor Experimental Targeting Computer Hackware Relay Coupler [Grunt] Protection Medium Armor Plating Artifact Stasis Generator Weapon Improved KE Penetrator Energy Gun Beam Rifle Energy Cannon Heavy Neutron Cannon Ballistic Gun Improved KE Penetrator Ballistic Cannon Light Cannon Launcher Gamma Bomb Array Slashing Weapon Phasing Sabre Build | -11 -10 -10 -9 -9 -9 -8 -8 -7 -7 -7 -7 -6 -6 -6 -6 -6 -6 -5 -5 -5 -5 -5 -5 -4 -4 -4 -4 -3 -3 -2 -2 -2 -1 -1 -1 -1 ------- Run | Scr Mat Min Mat Min Exi Min Mat Fac Gar Fac Gar Fac Was Fac Gar Fac Gar Fac Ext Cet Arc Hub Gar Fac Gar Fac Gar Res Gar Res Qua Gar Acc Gar Acc Com Slots Evolved 21 | 3 . . . . 1 . 2 3 1 1 . 2 . . 1 1 . 2 1 1 . . . . . . . . 1 . . . . 1 . . Power 2 | . . . . . . . . . . 1 . . . . . . . 1 . . . . . . . . . . . . . . . . . . Propulsion 5 | 1 . . . . . . . 1 . . . 1 . . . 1 . . 1 . . . . . . . . . . . . . . . . . Utility 10 | 1 . . . . 1 . 1 2 1 . . 1 . . 1 . . . . . . . . . . . . . 1 . . . . 1 . . Weapon 4 | 1 . . . . . . 1 . . . . . . . . . . 1 . 1 . . . . . . . . . . . . . . . . Parts Attached 302 | 5 6 4 7 2 9 1 7 4 2 10 5 5 5 17 7 14 1 13 7 9 . . 5 4 15 12 2 . 4 10 15 39 . 22 8 26 Power 36 | 1 . . . 1 . . . . . 2 2 2 . 5 . 1 1 3 . 3 . . . . 2 . . . 1 1 . 6 . 4 1 . Engine 4 | 1 . . . 1 . . . . . 1 1 . . . . . . . . . . . . . . . . . . . . . . . . . Core 12 | . . . . . . . . . . 1 1 2 . 4 . 1 1 2 . . . . . . . . . . . . . . . . . . Reactor 20 | . . . . . . . . . . . . . . 1 . . . 1 . 3 . . . . 2 . . . 1 1 . 6 . 4 1 . Propulsion 50 | 2 1 . 2 . 2 1 . 1 . 8 . 1 . 3 . 4 . . 3 . . . 1 1 6 4 . . 2 . 1 4 . 2 1 . Treads 1 | . . . . . . . . . . . . . . . . . . . . . . . . . . . . . . . . 1 . . . . Leg 1 | . . . . . 1 . . . . . . . . . . . . . . . . . . . . . . . . . . . . . . . Wheel 10 | 2 1 . 2 . 1 1 . 1 . 2 . . . . . . . . . . . . . . . . . . . . . . . . . . Hover 37 | . . . . . . . . . . 6 . 1 . 3 . 4 . . 3 . . . 1 1 6 4 . . 2 . 1 2 . 2 1 . Flight 1 | . . . . . . . . . . . . . . . . . . . . . . . . . . . . . . . . 1 . . . . Utility 146 | . 3 . 3 1 4 . 2 3 2 . . 2 5 6 7 8 . 3 3 3 . . 4 3 3 2 . . 1 4 11 19 . 14 6 24 Device 103 | . 1 . 1 . 3 . . 2 2 . . 1 5 4 5 7 . 2 2 3 . . 3 3 2 2 . . 1 4 7 10 . 8 5 20 Storage 6 | . . . . . . . . . . . . . . . 1 . . 1 1 . . . . . . . . . . . . 2 . . . 1 Processor 9 | . . . . . 1 . 2 . . . . 1 . 2 . . . . . . . . . . . . . . . . . . . 3 . . Hackware 3 | . . . . . . . . . . . . . . . 1 . . . . . . . 1 . 1 . . . . . . . . . . . Protection 8 | . 2 . 2 1 . . . 1 . . . . . . . 1 . . . . . . . . . . . . . . . 1 . . . . Artifact 17 | . . . . . . . . . . . . . . . . . . . . . . . . . . . . . . . 4 6 . 3 1 3 Weapon 70 | 2 2 4 2 . 3 . 5 . . . 3 . . 3 . 1 . 7 1 3 . . . . 4 6 2 . . 5 3 10 . 2 . 2 Energy Gun 9 | 1 1 1 . . . . 1 . . . . . . . . . . . . . . . . . . . . . . . . 3 . . . 2 Energy Cannon 4 | . . . . . . . . . . . . . . . . . . . . . . . . . . 3 . . . 1 . . . . . . Ballistic Gun 38 | 1 . 2 2 . 2 . 4 . . . 3 . . 3 . 1 . 3 . 3 . . . . 1 1 1 . . 3 2 6 . . . . Ballistic Cannon 2 | . 1 . . . . . . . . . . . . . . . . . . . . . . . . . 1 . . . . . . . . . Launcher 11 | . . 1 . . 1 . . . . . . . . . . . . 1 . . . . . . 1 2 . . . 1 1 1 . 2 . . Special Weapon . | . . . . . . . . . . . . . . . . . . . . . . . . . . . . . . . . . . . . . Impact Weapon . | . . . . . . . . . . . . . . . . . . . . . . . . . . . . . . . . . . . . . Slashing Weapon 6 | . . . . . . . . . . . . . . . . . . 3 1 . . . . . 2 . . . . . . . . . . . Piercing Weapon . | . . . . . . . . . . . . . . . . . . . . . . . . . . . . . . . . . . . . . Special Melee Weapon . | . . . . . . . . . . . . . . . . . . . . . . . . . . . . . . . . . . . . . Unidentified Prototypes 36 | . . . . . 5 . 3 . . 2 . . . 4 . 1 . 2 1 3 . . . 2 . . . . . 3 3 1 . . 2 4 Parts Lost 4 | . . . 1 . 1 . 1 . . . . . . . . 1 . . . . . . . . . . . . . . . . . . . . Power . | . . . . . . . . . . . . . . . . . . . . . . . . . . . . . . . . . . . . . Propulsion . | . . . . . . . . . . . . . . . . . . . . . . . . . . . . . . . . . . . . . Utility 3 | . . . 1 . 1 . . . . . . . . . . 1 . . . . . . . . . . . . . . . . . . . . Weapon 1 | . . . . . . . 1 . . . . . . . . . . . . . . . . . . . . . . . . . . . . . Highest Loss Streak 1 | . . . 1 . 1 . 1 . . . . . . . . 1 . . . . . . . . . . . . . . . . . . . . Average Slot Usage (%) 94 | . 93 100 97 100 98 90 90 94 100 99 99 94 94 94 94 89 89 89 90 90 91 91 91 88 88 94 95 95 98 99 94 94 . 95 93 93 Engine 3 | . 14 14 14 14 13 12 10 7 7 7 8 . . . . . . . . . . . . . . . . . . . . . . . . . Core 3 | . . . . . . . . . . . 3 10 11 9 11 10 10 9 9 4 4 4 4 4 4 4 4 4 1 . . . . . . . Reactor 4 | . . . . . . . . . . . . . . 1 . . . . 4 7 8 8 8 8 8 8 8 8 10 12 12 12 . 11 12 12 Wheel 6 | . 28 28 26 28 27 25 20 18 22 12 . . . . . . . . . . . . . . . . . . . . . . . . . . Hover 13 | . . . . . . . . . . 8 20 17 17 17 17 15 15 14 14 17 17 17 17 14 14 20 21 21 24 25 20 20 . 20 20 20 Device 25 | . 9 14 14 14 16 25 20 23 32 34 33 34 29 29 28 29 26 28 27 26 26 26 26 20 21 20 21 21 21 25 22 25 . 25 22 31 Processor 12 | . . . . . 2 12 14 15 14 13 13 11 17 17 17 15 15 14 13 13 13 13 13 13 13 13 13 13 12 12 12 12 . 13 16 12 Protection 1 | . 12 14 13 14 9 . . 1 . . . . . . . 1 5 1 . . . . . . . . . . . . . . . . . . Ballistic Gun 18 | . 14 26 28 28 27 15 23 24 22 20 19 17 17 17 17 15 15 14 13 14 17 17 17 17 17 16 17 17 16 15 16 15 . 16 16 16 Naked Turns . | . . . . . . . . . . . . . . . . . . . . . . . . . . . . . . . . . . . . . Heaviest Build 109 | 6 14 12 14 23 23 20 23 31 33 38 47 47 43 50 47 47 47 53 60 87 78 78 85 82 82 85 85 85 98 98 101 109 98 109 107 109 Greatest Support 126 | 31 31 25 27 27 29 27 27 37 37 44 44 59 59 61 61 76 76 76 88 88 88 95 92 92 115 116 113 113 119 119 121 121 121 126 126 122 Greatest Overweight (x) 2 | . . . . . 1 . . 1 . 2 1 1 . . . . . . . . . . . . 1 1 . . . . . . . . . . Average Overweight (x) . | . . . . . . . . . . . . . . . . . . . . . . . . . . . . . . . . . . . . . Largest Inventory Capacity 7 | 1 1 1 1 4 4 4 4 4 4 5 5 5 6 6 6 6 6 6 6 6 6 6 6 6 6 6 6 6 6 6 7 7 7 7 7 7 Average Capacity 5 | . 1 1 1 2 4 4 4 4 4 4 5 5 5 6 6 6 6 6 6 6 6 6 6 6 6 6 6 6 6 6 6 7 7 7 7 7 Most Carried 7 | . 1 1 1 4 4 4 4 4 4 5 5 5 6 6 6 6 6 6 6 6 6 6 6 6 6 6 6 6 6 6 7 7 7 7 7 7 Average Carried 5 | . . 1 1 2 2 3 4 3 3 4 5 4 5 5 5 5 6 5 6 6 6 6 5 6 5 6 5 6 5 5 5 6 7 6 6 5 Final Capacity 7 | 1 1 1 1 4 4 4 4 4 4 5 5 5 6 6 6 6 6 6 6 6 6 6 6 6 6 6 6 6 6 6 7 7 7 7 7 7 Final Carried 7 | . 1 1 1 4 3 4 4 4 4 5 5 5 6 6 5 6 6 6 6 6 6 6 6 6 6 6 6 6 6 6 5 7 7 7 7 5 Class Distribution -------------------- 48% | Scavenger-Scout 15% | Scout 14% | Scavenger-Gunner 11% | Mutant 4% | Commander-Scout 4% | Scavenger-Mutant Dominant Class ---------------- Mutant | -10/Materials Mutant | -10/Mines Mutant | -9/Materials Mutant | -9/Mines Mutant | -9/Exiles Scavenger-Mutant | -8/Mines Scavenger-Gunner | -8/Materials Scavenger-Gunner | -7/Factory Scavenger-Gunner | -7/Garrison Scavenger-Gunner | -7/Factory Scavenger-Gunner | -7/Garrison Scavenger-Scout | -6/Factory Scavenger-Scout | -6/Waste Scout | -6/Factory Scout | -6/Garrison Scout | -6/Factory Scout | -6/Garrison Scavenger-Scout | -5/Factory Commander-Scout | -5/Extension Commander-Scout | -5/Cetus Scavenger-Scout | -5/Archives Scavenger-Scout | -5/Hub_04(d) Scavenger-Scout | -5/Garrison Scavenger-Scout | -4/Factory Scavenger-Scout | -4/Garrison Scavenger-Scout | -4/Factory Scavenger-Scout | -4/Garrison Scavenger-Scout | -3/Research Scavenger-Scout | -3/Garrison Scavenger-Scout | -2/Research Scavenger-Scout | -2/Quarantine Scavenger-Scout | -2/Garrison Scavenger-Scout | -1/Access Scavenger-Scout | -1/Garrison Scavenger-Scout | -1/Access Scavenger-Scout | -1/Command Resources | -11 -10 -10 -9 -9 -9 -8 -8 -7 -7 -7 -7 -6 -6 -6 -6 -6 -6 -5 -5 -5 -5 -5 -5 -4 -4 -4 -4 -3 -3 -2 -2 -2 -1 -1 -1 -1 ----------- Run | Scr Mat Min Mat Min Exi Min Mat Fac Gar Fac Gar Fac Was Fac Gar Fac Gar Fac Ext Cet Arc Hub Gar Fac Gar Fac Gar Res Gar Res Qua Gar Acc Gar Acc Com Matter Collected 18278 | 253 154 100 354 68 200 210 556 502 754 444 873 52 322 1156 1039 343 484 734 446 228 8 180 440 164 1064 774 462 . 410 110 234 1238 . 1106 398 2418 Remotely 16535 | . 136 100 354 68 . 210 556 502 754 436 873 52 322 . 1039 341 484 711 446 228 8 180 440 164 1064 774 462 . 410 110 234 1238 . 1106 398 2335 Salvage Created 40833 | . 217 108 439 116 26 189 816 1249 1446 763 1982 52 1833 1261 1429 875 931 2395 1412 378 145 948 637 497 2900 3146 1605 . 1046 236 395 2306 . 2855 1079 5121 Parts 1987 | . 10 15 34 9 6 10 50 75 57 50 102 1 31 71 61 36 62 108 64 25 5 53 64 37 110 138 81 . 61 17 24 131 . 151 53 185 Haulers Intercepted 17 | . 2 . . . . . 3 1 . 4 . . . 1 . . . 1 1 . . . . 1 . 2 . . . . . . . . 1 . Recyclers Shooed 26 | . . 3 3 . . . 1 1 . . . . . 2 . 2 . 3 . . . . . . . 7 . . . 1 . . . . . 3 Parts Field Recycled . | . . . . . . . . . . . . . . . . . . . . . . . . . . . . . . . . . . . . . Retrieved Matter . | . . . . . . . . . . . . . . . . . . . . . . . . . . . . . . . . . . . . . Parts Self-Destructed . | . . . . . . . . . . . . . . . . . . . . . . . . . . . . . . . . . . . . . Prevented . | . . . . . . . . . . . . . . . . . . . . . . . . . . . . . . . . . . . . . Kills | -11 -10 -10 -9 -9 -9 -8 -8 -7 -7 -7 -7 -6 -6 -6 -6 -6 -6 -5 -5 -5 -5 -5 -5 -4 -4 -4 -4 -3 -3 -2 -2 -2 -1 -1 -1 -1 ------- Run | Scr Mat Min Mat Min Exi Min Mat Fac Gar Fac Gar Fac Was Fac Gar Fac Gar Fac Ext Cet Arc Hub Gar Fac Gar Fac Gar Res Gar Res Qua Gar Acc Gar Acc Com Combat Hostiles Destroyed 543 | . 5 3 14 4 5 . 11 15 26 13 36 . 5 18 26 8 28 22 14 5 1 9 19 5 34 33 24 . 19 2 3 35 . 48 9 44 Guns 528 | . 5 . 14 4 1 . 11 15 26 13 36 . 5 18 26 8 28 22 14 5 1 9 19 5 30 31 24 . 19 2 3 35 . 48 8 43 AOE 12 | . . 3 . . 4 . . . . . . . . . . . . . . . . . . . 4 1 . . . . . . . . . . Classes Destroyed 21 | . 3 3 3 . 1 . 2 3 . 1 . . 1 . . . 2 . . . . . 1 . . 1 . . . . . . . . . . Worker 40 | . . 2 . 1 . . 1 4 . 2 . 1 . 3 . 1 . 12 . . . 4 . . . 4 . . . . . . . . 2 3 Builder 24 | . . 1 . 1 . . 2 3 . 1 . . . . . . . 6 . . . 2 . 1 . 7 . . . . . . . . . . Tunneler 7 | . . 1 . . . 2 . . . . . . . . . 1 . 1 1 . . . . . . . . . . . . . . . 1 . Hauler 17 | . 2 . . . . . 3 1 . 4 . . . 1 . . . 1 1 . . . . 1 . 2 . . . . . . . . 1 . Recycler 28 | . . . 1 . . 2 . 4 . . . . . 2 . 2 . 5 2 . . 2 . 1 . 2 . . . . 1 . . . 1 3 Mechanic 3 | . . . . . . . . . . 1 . . . . . 1 . . . . . . . . . 1 . . . . . . . . . . Operator 6 | . . . . . . . . 1 . . . . . 2 . . . . 1 . . 1 . 1 . . . . . . . . . . . . Watcher 31 | . . . . . . . 1 1 1 2 1 1 . 3 . . . 4 2 1 . 1 . 1 1 2 . . . 2 1 . . 1 3 2 Swarmer 126 | . 3 3 3 4 . . . 1 3 6 14 . . 3 11 . 8 . . . . . 4 . 8 . 4 . 3 . . 11 . 25 3 9 Saboteur 2 | . . . . . . . . . . . . . . . . . 1 . . . . . . . . . . . . . . . . . . 1 Grunt 204 | . 2 . 7 . . . 7 8 12 7 8 . . 2 9 2 11 11 6 1 . 7 6 1 16 11 10 . 12 . . 10 . 15 3 20 Brawler 19 | . . . . . . . . 1 1 . 1 . . . . 2 2 1 . . . . 1 . . 4 3 . . . . . . . . 3 Duelist 14 | . . . 1 . . . 1 1 1 . 1 . . 1 . . . 1 . . . . 1 . 1 . 1 . . . . 1 . 2 . 1 Protector 2 | . . . . . . . . . . . . . . . . . . . . . . . . . . 1 . . . . . . . . . 1 Sentry 77 | . . . 3 . . . 1 2 7 . 11 . . 4 3 3 2 3 7 . 1 2 2 2 6 3 1 . . 2 . 7 . 1 2 2 Specialist 3 | . . . . . . . . . . . . . . . . . 2 . . . . . 1 . . . . . . . . . . . . . Hunter 41 | . . . . . . . 2 1 2 . 1 . . 1 3 . 2 3 1 2 . . 2 . 2 8 . . 3 . 2 2 . 2 . 2 Programmer 31 | . . . . . . . . 1 . . . . . 3 . 1 . 3 . . . . 1 2 1 6 2 . 2 . 1 3 . 2 1 2 Behemoth 6 | . . . . . . . . . . . . . . . . . . . . . . . 1 . . . 3 . . . . 1 . 1 . . Compactor 5 | . . . . . . . . . . . . . 5 . . . . . . . . . . . . . . . . . . . . . . . Cetus Guard 2 | . . . . . . . . . . . . . . . . . . . . 2 . . . . . . . . . . . . . . . . M Guard 1 | . . . . . . . . . . . . . . . . . . . . . . . . . . . . . . . . . . . . 1 Enhanced Grunt 2 | . . . . . . . . . . . . . . . . . . . . . . 2 . . . . . . . . . . . . . . Combat Programmer 2 | . . . . . . . . . . . . . . . . . . . . . . . . . . . . . . . . . . . . 2 Assembled 12 | . . . . . 7 . . . . . . . . 4 . . . . . . . . . . . . . . . . . . . . . 1 Guerrilla 1 | . . . . . . . . . . . . . . . . . . . . 1 . . . . . . . . . . . . . . . . Best Kill Streak 22 | . 3 3 5 3 4 1 8 5 7 5 13 2 3 5 12 5 14 16 6 3 1 5 7 5 9 22 8 . 9 2 4 10 . 11 5 13 Combat Bots Only 15 | . 3 3 5 3 4 . 4 4 7 3 13 . 3 5 12 5 14 10 3 2 1 3 7 3 9 15 8 . 9 1 2 10 . 11 3 13 Max Kills in Single Turn 5 | . 1 2 1 1 3 1 2 2 2 2 1 2 1 2 2 1 1 4 2 1 1 5 3 4 4 4 3 . 2 1 1 2 . 3 2 4 Gunslinging 2 | . . . . . . . . 1 1 1 . . . 2 1 . . 1 . . . . 1 1 1 1 1 . 1 . . 1 . 2 . 1 Exploded 4 | . . 2 . . 3 . . . . . . . . . . . . . . . . . . . 4 1 . . . . . . . . . . Melee . | . . . . . . . . . . . . . . . . . . . . . . . . . . . . . . . . . . . . . Uniques/NPCs Destroyed 2 | . . . . . 1 . . . . . . . . . . . . . . 1 . . . . . . . . . . . . . . . . 8R-AWN (-9/Exiles) A7 (-5/Cetus) Combat | -11 -10 -10 -9 -9 -9 -8 -8 -7 -7 -7 -7 -6 -6 -6 -6 -6 -6 -5 -5 -5 -5 -5 -5 -4 -4 -4 -4 -3 -3 -2 -2 -2 -1 -1 -1 -1 -------- Run | Scr Mat Min Mat Min Exi Min Mat Fac Gar Fac Gar Fac Was Fac Gar Fac Gar Fac Ext Cet Arc Hub Gar Fac Gar Fac Gar Res Gar Res Qua Gar Acc Gar Acc Com Damage Taken 18900 | . 140 15 782 94 950 . 254 444 659 348 1128 30 . 975 845 549 780 562 597 82 124 629 453 42 426 1129 699 . 439 45 87 1109 . 847 333 3304 Core 14824 | . 106 11 562 66 720 . 205 351 519 291 869 30 . 792 663 426 565 422 474 65 97 507 360 36 329 893 554 . 341 34 71 882 . 668 260 2655 Absorbed by Shields 2667 | . . . . . . . . . . 3 . . . . . . . . 135 71 . . 190 12 270 409 260 . 159 17 14 154 . 71 22 880 Redirected to Core 12774 | . 62 11 376 50 479 . 155 300 447 189 788 . . 636 598 374 503 352 439 55 97 463 302 24 296 814 493 . 332 34 59 801 . 630 260 2355 Core Remaining (%) 88 | 100 . 98 . . . 59 77 . . . 100 . . . . . 100 . . . . . 100 . . . 95 . 100 . . 100 . . . 46 Volleys Fired 1600 | 1 22 12 72 7 48 10 43 45 80 41 109 3 21 68 67 22 57 91 50 23 2 36 53 7 68 85 61 . 41 14 13 72 . 75 23 158 Largest 4 | 2 2 2 2 2 2 2 3 3 3 3 3 3 3 3 3 3 3 3 3 4 1 4 4 4 4 4 4 . 4 4 4 4 . 4 4 4 Hottest 135 | 60 76 40 46 46 46 53 80 80 80 80 90 90 90 90 90 90 75 75 60 135 30 135 135 135 135 135 135 . 135 135 135 130 . 130 130 130 Shots Fired 4594 | 2 44 22 144 14 91 14 89 135 238 122 292 9 64 199 194 59 160 211 144 41 2 54 161 25 200 248 178 . 152 32 40 254 . 267 90 603 Gun 4550 | 2 37 20 144 14 86 14 89 135 238 122 292 9 64 199 194 59 160 211 144 41 2 54 161 25 199 239 171 . 148 24 39 254 . 267 90 603 Cannon 32 | . 7 . . . . . . . . . . . . . . . . . . . . . . . . 5 7 . 4 8 1 . . . . . Launcher 12 | . . 2 . . 5 . . . . . . . . . . . . . . . . . . . 1 4 . . . . . . . . . . Special . | . . . . . . . . . . . . . . . . . . . . . . . . . . . . . . . . . . . . . Kinetic 4541 | 1 29 20 144 14 86 14 89 135 238 122 292 9 64 199 194 59 160 211 144 41 2 54 161 25 199 239 171 . 148 24 39 254 . 267 90 603 Thermal 41 | 1 15 . . . . . . . . . . . . . . . . . . . . . . . . 5 7 . 4 8 1 . . . . . Explosive 7 | . . 2 . . 5 . . . . . . . . . . . . . . . . . . . . . . . . . . . . . . . Electromagnetic 5 | . . . . . . . . . . . . . . . . . . . . . . . . . 1 4 . . . . . . . . . . Robot Hit Streak 81 | 1 22 11 14 2 15 3 13 19 13 11 24 13 15 30 19 11 18 17 42 17 5 21 23 19 38 56 35 . 34 16 11 21 . 49 36 81 Robot Miss Streak 8 | 1 2 2 4 2 3 2 4 3 2 3 8 1 3 3 7 3 3 6 2 2 . 2 3 1 4 3 3 . 3 1 1 3 . 2 3 2 Penetration Max 2 | . . . . . . . 1 2 1 1 2 . 1 1 1 2 2 2 2 1 1 2 1 1 2 2 1 . 1 . 1 1 . 1 2 2 Secondary Targets 115 | . . . 1 2 . . . 3 5 2 14 . . 4 6 2 9 3 3 . . . 4 1 7 9 7 . 7 . . 7 . 14 1 4 Max Gunslinging Chain 2 | . . . 1 1 . . . 1 1 1 1 . . 2 1 1 1 1 1 . . . 1 1 1 2 1 . 2 . . 1 . 2 1 1 Shots Hit Robots 3175 | 1 31 13 103 6 69 7 66 94 140 75 197 5 50 132 88 37 96 161 115 29 2 42 101 20 141 185 120 . 115 18 23 181 . 184 55 473 Core Hits 1526 | . 11 8 34 6 25 4 28 49 58 33 84 2 16 43 46 22 47 79 51 17 2 38 38 14 86 123 58 . 54 9 8 72 . 102 22 237 Critical Hits 888 | . . . . . . 3 17 20 21 11 46 . 8 13 20 11 13 53 28 12 1 27 28 5 38 64 42 . 24 3 6 59 . 89 28 198 Critical Kills 308 | . . . . . . 2 6 8 6 4 14 . 3 4 7 9 6 25 11 6 1 12 9 4 16 23 14 . 8 2 3 25 . 34 14 32 Critical Parts Destroyed 461 | . . . . . . 1 11 10 12 7 29 . 2 9 13 2 6 25 17 6 . 15 19 1 22 40 21 . 16 1 3 29 . 48 14 82 Melee Attacks 59 | . . . . . . . . . . . . . . . . . . 21 1 . . 1 . 7 11 18 . . . . . . . . . . Impact . | . . . . . . . . . . . . . . . . . . . . . . . . . . . . . . . . . . . . . Slashing 59 | . . . . . . . . . . . . . . . . . . 21 1 . . 1 . 7 11 18 . . . . . . . . . . Piercing . | . . . . . . . . . . . . . . . . . . . . . . . . . . . . . . . . . . . . . Sneak Attacks 6 | . . . . . . . . . . . . . . . . . . 2 . . . . . 2 . 2 . . . . . . . . . . Combat Hostiles . | . . . . . . . . . . . . . . . . . . . . . . . . . . . . . . . . . . . . . Follow-up Attacks . | . . . . . . . . . . . . . . . . . . . . . . . . . . . . . . . . . . . . . Damage Inflicted 82414 | 14 414 359 1108 117 1591 121 1224 1910 2627 1444 3975 125 1251 2895 2118 1039 2366 4754 3001 791 59 1835 2787 904 5289 6789 3432 . 2964 384 571 4693 . 5639 1446 12378 Guns 77562 | 14 414 154 1108 117 1013 121 1224 1910 2627 1444 3975 125 1251 2893 2118 1039 2366 4354 3001 791 59 1194 2787 597 4377 5086 3432 . 2964 345 571 4693 . 5639 1381 12378 Cannons 39 | . . . . . . . . . . . . . . . . . . . . . . . . . . . . . . 39 . . . . . . Explosions 2947 | . . 205 . . 578 . . . . . . . . . . . . . . . . 641 . . 186 1305 . . . . . . . . 32 . Melee 1831 | . . . . . . . . . . . . . . . . . . 400 . . . . . 307 726 398 . . . . . . . . . . Ramming 35 | . . . . . . . . . . . . . . 2 . . . . . . . . . . . . . . . . . . . . 33 . Kinetic 77374 | 14 226 154 1108 117 1013 121 1224 1910 2627 1444 3975 125 1251 2893 2118 1039 2366 4354 3001 791 59 1194 2787 597 4377 5086 3432 . 2964 345 571 4693 . 5639 1381 12378 Thermal 1150 | . 188 . . . . . . . . . . . . . . . . . . . . . . . 114 809 . . . 39 . . . . . . Explosive 783 | . . 205 . . 578 . . . . . . . . . . . . . . . . . . . . . . . . . . . . . . . Electromagnetic 1241 | . . . . . . . . . . . . . . . . . . . . . . 641 . . 72 496 . . . . . . . . 32 . Impact . | . . . . . . . . . . . . . . . . . . . . . . . . . . . . . . . . . . . . . Slashing 1831 | . . . . . . . . . . . . . . . . . . 400 . . . . . 307 726 398 . . . . . . . . . . Piercing . | . . . . . . . . . . . . . . . . . . . . . . . . . . . . . . . . . . . . . Highest Corruption 32 | . . . . . . . 1 3 3 3 3 . 16 26 26 32 32 1 1 1 1 4 4 1 1 2 2 . . . . 2 . 1 4 17 Average Corruption 8 | . . . . . . . 1 2 3 3 3 . 10 18 26 30 32 1 1 1 1 1 2 1 1 1 2 . . . . 1 . 1 2 11 Corruption Purged 9 | . . . . . . . . . . . . . . . . . . . . . . . 4 . . . . . . . . . . . . 5 Effects 620 | . . . . . . . 1 1 23 12 20 . 15 82 76 70 107 5 5 . . 3 3 2 2 8 4 . . . . 2 . 4 14 161 Message Errors 55 | . . . . . . . 1 . 4 1 7 . 1 2 1 6 4 1 3 . . 1 1 1 1 1 1 . . . . 1 . 3 2 12 Matter Fused 47 | . . . . . . . . . 3 2 3 . . 7 5 6 7 . . . . . . . . . . . . . . . . . . 14 Heat Flow Errors 23 | . . . . . . . . 1 . 2 1 . 2 4 2 2 6 . . . . . 1 . . . 1 . . . . . . . . 1 Energy Discharges 37 | . . . . . . . . . 5 . 1 . . 3 3 3 1 1 . . . 1 . . 1 1 . . . . . . . 1 1 15 Parts Rejected 3 | . . . . . . . . . . . . . . 1 1 . 1 . . . . . . . . . . . . . . . . . . . Data Loss (minor) 26 | . . . . . . . . . 2 2 4 . . 4 3 . 1 . . . . . 1 . . 3 . . . . . . . . 2 4 Data Loss (major) 8 | . . . . . . . . . . . . . 1 3 1 1 1 . . . . . . . . . . . . . . . . . . 1 Misfires 9 | . . . . . . . . . . . . . 1 2 . 1 2 . . . . . . . . . . . . . . . . . . 3 Alerts 2 | . . . . . . . . . . . . . . . . . 2 . . . . . . . . . . . . . . . . . . . Misdirections 77 | . . . . . . . . . . . . . . 27 9 20 17 . . . . . . . . . . . . . . . . . . 4 Targeting Errors 277 | . . . . . . . . . 7 4 4 . 10 23 44 23 56 3 1 . . 1 . 1 . 1 2 . . . . 1 . . 7 89 Weapon Failures 56 | . . . . . . . . . 2 1 . . . 6 7 8 9 . 1 . . . . . . 2 . . . . . . . . 2 18 Overload Shots . | . . . . . . . . . . . . . . . . . . . . . . . . . . . . . . . . . . . . . Overflow Damage 584 | . . 12 . . 12 . . . . . . . . . . . . 229 . . . 28 . 121 53 119 . . . . . . . . 10 . Projectiles . | . . . . . . . . . . . . . . . . . . . . . . . . . . . . . . . . . . . . . Explosions 95 | . . 12 . . 12 . . . . . . . . . . . . . . . . 28 . . . 36 . . . . . . . . 7 . Melee 489 | . . . . . . . . . . . . . . . . . . 229 . . . . . 121 53 83 . . . . . . . . 3 . Knockbacks . | . . . . . . . . . . . . . . . . . . . . . . . . . . . . . . . . . . . . . Impact . | . . . . . . . . . . . . . . . . . . . . . . . . . . . . . . . . . . . . . Kinetic . | . . . . . . . . . . . . . . . . . . . . . . . . . . . . . . . . . . . . . Secondary . | . . . . . . . . . . . . . . . . . . . . . . . . . . . . . . . . . . . . . Self-Inflicted Damage 167 | . . . . . . . 36 . . . . . . 1 . . . . . . . 76 . . . 38 . . . . . . . . 16 . Shots 3 | . . . . . . . 1 . . . . . . . . . . . . . . 1 . . . 1 . . . . . . . . . . Rammed 2 | . . . . . . . . . . . . . . 1 . . . . . . . . . . . . . . . . . . . . 1 . Targets Rammed 2 | . . . . . . . . . . . . . . 1 . . . . . . . . . . . . . . . . . . . . 1 . Kicked . | . . . . . . . . . . . . . . . . . . . . . . . . . . . . . . . . . . . . . Crushed . | . . . . . . . . . . . . . . . . . . . . . . . . . . . . . . . . . . . . . Highest Temperature 363 | . 67 . 9 . . 16 216 202 68 144 254 36 288 251 113 239 257 363 81 312 . 91 100 7 30 47 114 . 68 84 16 69 . 106 40 132 Average Temperature 30 | . 23 . 4 . . 8 62 49 29 36 39 21 81 27 42 53 55 88 19 96 . 38 5 6 5 11 15 . 15 36 16 24 . 30 16 9 Received Heat Transfer 3029 | . 54 . 324 . . . 117 123 285 69 411 . . 187 84 141 201 99 166 5 24 45 37 8 92 125 130 . 26 12 . 63 . 90 4 107 Effects 2 | . . . . . . . . . . . . . . 1 . . . 1 . . . . . . . . . . . . . . . . . . Shutdowns 1 | . . . . . . . . . . . . . . . . . . 1 . . . . . . . . . . . . . . . . . . Energy Bleed 1 | . . . . . . . . . . . . . . 1 . . . . . . . . . . . . . . . . . . . . . . Siege Activations . | . . . . . . . . . . . . . . . . . . . . . . . . . . . . . . . . . . . . . Robots Corrupted 1 | . . . . . . . . . . . . . . . . . . . . . . . . . . 1 . . . . . . . . . . Combat Hostiles 1 | . . . . . . . . . . . . . . . . . . . . . . . . . . 1 . . . . . . . . . . Parts Fried 4 | . . . . . . . . . . . . . . . . . . . . . . 1 . . . 1 . . . . . . . . 2 . Impact Corruptions 1 | . . . . . . . . . . . . . . . . . . . . . . . . . . . . . . . . . . . 1 . Robots Melted . | . . . . . . . . . . . . . . . . . . . . . . . . . . . . . . . . . . . . . Combat Hostiles . | . . . . . . . . . . . . . . . . . . . . . . . . . . . . . . . . . . . . . Parts Melted 7 | . . . . . . . . . . . . . . . . . . . . . . . . . . 5 . . . . . . . . . 2 Heat Transferred 1756 | . 481 . . . . . . . . . . . . . . . . . . . . . . . 150 1100 . . . 25 . . . . . . Parts Sabotaged 7 | . . . . . . . . . . . . . . . . 3 . . . . . . . . . 4 . . . . . . . . . . Parts Stolen . | . . . . . . . . . . . . . . . . . . . . . . . . . . . . . . . . . . . . . Parts Stripped . | . . . . . . . . . . . . . . . . . . . . . . . . . . . . . . . . . . . . . Power Chain Reactions 7 | . . . . . . . . . . . . . . . . . . . . . . . . . 1 6 . . . . . . . . . . Missiles Intercepted 4 | . . . . . . . . . . . . . . . . . . . . . . . . . . . . . . . . . . . . 4 Alert | -11 -10 -10 -9 -9 -9 -8 -8 -7 -7 -7 -7 -6 -6 -6 -6 -6 -6 -5 -5 -5 -5 -5 -5 -4 -4 -4 -4 -3 -3 -2 -2 -2 -1 -1 -1 -1 ------- Run | Scr Mat Min Mat Min Exi Min Mat Fac Gar Fac Gar Fac Was Fac Gar Fac Gar Fac Ext Cet Arc Hub Gar Fac Gar Fac Gar Res Gar Res Qua Gar Acc Gar Acc Com Peak Influence 2039 | . 180 104 426 234 . 24 327 388 1162 1017 1960 1100 286 255 1019 1075 1357 1201 1270 1197 698 1609 1763 1023 1491 1424 1661 1100 1285 747 484 1169 700 2039 1511 1696 Initial 1223 | . . 14 40 134 . . 9 148 222 609 596 1100 286 200 94 534 752 711 519 711 478 244 1098 925 616 782 996 1100 825 722 272 211 700 579 1223 883 Average 834 | . 91 92 239 207 . 13 183 250 789 813 1397 900 286 151 631 738 1100 836 896 1050 643 768 1349 862 1168 913 1378 1100 1105 618 281 723 700 1453 1352 1457 Maximum Alert Level 5 | . . . 2 1 . . 1 1 4 3 5 4 1 1 3 3 4 4 4 4 2 5 5 3 4 4 5 4 4 3 2 4 3 5 4 5 Low Security (%) 13 | 100 100 100 32 7 . 100 52 32 . . . . . 67 8 . . . . . . . . . . . . . . . 3 . . . . . Level 1 13 | . . . 56 92 . . 47 67 11 . . . 100 32 8 . . . . . . 22 . . . . . . . . 84 30 . . . . Level 2 10 | . . . 10 . . . . . 19 22 3 . . . 44 66 . 19 13 1 100 25 . . 5 3 . . . 63 12 10 . 2 . . Level 3 31 | . . . . . . . . . 48 77 15 91 . . 39 33 31 72 71 49 . 36 26 100 39 85 9 . 42 36 . 47 100 22 . 5 Level 4 24 | . . . . . . . . . 19 . 43 8 . . . . 68 8 14 49 . 12 48 . 55 11 69 100 57 . . 12 . 31 100 64 Level 5 6 | . . . . . . . . . . . 20 . . . . . . . . . . 2 25 . . . 17 . . . . . . 42 . 29 High Security . | . . . . . . . . . . . 15 . . . . . . . . . . . . . . . 3 . . . . . . . . . Max Security . | . . . . . . . . . . . . . . . . . . . . . . . . . . . . . . . . . . . . . Squads Dispatched 64 | . . . 4 . . . 4 2 . 3 4 1 . 8 . 2 . 6 2 1 . 5 . 1 . 11 . . . 1 1 . . . 1 7 Investigation 14 | . . . 2 . . . 2 . . 1 . 1 . 1 . 1 . . 1 1 . 1 . . . 1 . . . 1 1 . . . . . Extermination 10 | . . . . . . . . . . 1 . . . 2 . . . 1 . . . 1 . 1 . 1 . . . . . . . . 1 2 Reinforcement 17 | . . . 2 . . . 2 1 . 1 . . . 3 . . . 2 1 . . . . . . 5 . . . . . . . . . . Assault 19 | . . . . . . . . . . . 4 . . 1 . 1 . 3 . . . 1 . . . 4 . . . . . . . . . 5 Garrison 4 | . . . . . . . . 1 . . . . . 1 . . . . . . . 2 . . . . . . . . . . . . . . Intercept . | . . . . . . . . . . . . . . . . . . . . . . . . . . . . . . . . . . . . . Construction Impeded 2 | . . . . . . . 1 . . . . . . . . . . . . . . . . . . 1 . . . . . . . . . . Haulers Reinforced 4 | . . . . . . . . . . 1 . . . 1 . . . 1 . . . . . . . 1 . . . . . . . . . . Stealth | -11 -10 -10 -9 -9 -9 -8 -8 -7 -7 -7 -7 -6 -6 -6 -6 -6 -6 -5 -5 -5 -5 -5 -5 -4 -4 -4 -4 -3 -3 -2 -2 -2 -1 -1 -1 -1 --------- Run | Scr Mat Min Mat Min Exi Min Mat Fac Gar Fac Gar Fac Was Fac Gar Fac Gar Fac Ext Cet Arc Hub Gar Fac Gar Fac Gar Res Gar Res Qua Gar Acc Gar Acc Com Distress Signals 28 | . 1 . 4 . . . . 1 . . . . . 3 . . . 2 4 2 . 1 . . . 6 . . . . . . . 1 1 2 Communications Jammed . | . . . . . . . . . . . . . . . . . . . . . . . . . . . . . . . . . . . . . Distress Signals . | . . . . . . . . . . . . . . . . . . . . . . . . . . . . . . . . . . . . . Times Spotted 758 | . 10 3 25 8 5 . 15 19 29 19 57 2 5 38 32 12 28 39 28 11 5 20 39 6 29 60 26 . 21 5 10 36 . 58 14 44 Peak Tracking Total 14 | . 5 1 8 4 6 . 4 5 4 4 13 1 2 5 6 5 7 6 4 5 2 9 8 3 7 13 7 . 5 1 2 7 . 10 3 14 Tactical Retreats 69 | . . . 5 . . . 1 . . 1 8 . . 5 2 . 5 2 . . . 1 14 . 1 7 1 . 1 . 1 3 . 7 1 3 Traps | -11 -10 -10 -9 -9 -9 -8 -8 -7 -7 -7 -7 -6 -6 -6 -6 -6 -6 -5 -5 -5 -5 -5 -5 -4 -4 -4 -4 -3 -3 -2 -2 -2 -1 -1 -1 -1 ------- Run | Scr Mat Min Mat Min Exi Min Mat Fac Gar Fac Gar Fac Was Fac Gar Fac Gar Fac Ext Cet Arc Hub Gar Fac Gar Fac Gar Res Gar Res Qua Gar Acc Gar Acc Com Traps Triggered 78 | . . . . . . . 1 1 7 5 9 2 . 6 4 1 3 . 4 . . 2 6 . 3 1 4 . 2 2 1 3 . 5 6 . Indirectly 2 | . . . . . . . . . . . . . . . . . . . . . . 2 . . . . . . . . . . . . . . Trap Hack Attempts . | . . . . . . . . . . . . . . . . . . . . . . . . . . . . . . . . . . . . . Triggered . | . . . . . . . . . . . . . . . . . . . . . . . . . . . . . . . . . . . . . Disarmed . | . . . . . . . . . . . . . . . . . . . . . . . . . . . . . . . . . . . . . Reprogrammed . | . . . . . . . . . . . . . . . . . . . . . . . . . . . . . . . . . . . . . Reused 3 | . . . . . 3 . . . . . . . . . . . . . . . . . . . . . . . . . . . . . . . Traps Extracted . | . . . . . . . . . . . . . . . . . . . . . . . . . . . . . . . . . . . . . Installed 3 | . . . . . 3 . . . . . . . . . . . . . . . . . . . . . . . . . . . . . . . Triggered . | . . . . . . . . . . . . . . . . . . . . . . . . . . . . . . . . . . . . . Machines | -11 -10 -10 -9 -9 -9 -8 -8 -7 -7 -7 -7 -6 -6 -6 -6 -6 -6 -5 -5 -5 -5 -5 -5 -4 -4 -4 -4 -3 -3 -2 -2 -2 -1 -1 -1 -1 ---------- Run | Scr Mat Min Mat Min Exi Min Mat Fac Gar Fac Gar Fac Was Fac Gar Fac Gar Fac Ext Cet Arc Hub Gar Fac Gar Fac Gar Res Gar Res Qua Gar Acc Gar Acc Com Machines Disabled 102 | . . . 1 . 4 . 3 . 5 1 5 . . 5 9 1 1 2 2 2 2 13 6 2 3 15 3 . 2 1 5 1 . 4 1 3 Max in Single Turn 12 | . . . 1 . 2 . 1 . 1 1 2 . . 1 2 1 1 1 1 . 1 12 1 1 1 6 1 . 1 1 1 1 . 1 1 2 Garrison Access 2 | . . . . . . . . . . . . . . 1 . . . . . . . . . . . 1 . . . . . . . . . . Garrison Relay 26 | . . . . . . . . . 4 . 3 . . . 5 . . . . . . . 4 . 3 . 3 . 1 . . . . 3 . . Phase Generator 2 | . . . . . . . . . . . 1 . . . . . . . . . . . . . . . . . . . . . . . . 1 Network Hub 1 | . . . . . . . . . . . . . . . . . . . . . . 1 . . . . . . . . . . . . . . Machines Sabotaged . | . . . . . . . . . . . . . . . . . . . . . . . . . . . . . . . . . . . . . Garrisons Compromised . | . . . . . . . . . . . . . . . . . . . . . . . . . . . . . . . . . . . . . Overloaded Fab Kills . | . . . . . . . . . . . . . . . . . . . . . . . . . . . . . . . . . . . . . Fab Network Shutdowns 1 | . . . . . . . . . . . . . . . . 1 . . . . . . . . . . . . . . . . . . . . Hacking | -11 -10 -10 -9 -9 -9 -8 -8 -7 -7 -7 -7 -6 -6 -6 -6 -6 -6 -5 -5 -5 -5 -5 -5 -4 -4 -4 -4 -3 -3 -2 -2 -2 -1 -1 -1 -1 --------- Run | Scr Mat Min Mat Min Exi Min Mat Fac Gar Fac Gar Fac Was Fac Gar Fac Gar Fac Ext Cet Arc Hub Gar Fac Gar Fac Gar Res Gar Res Qua Gar Acc Gar Acc Com Machines Accessed 100 | . 5 . 5 . 2 . 4 4 . 5 . 3 . 15 . 7 . 5 10 1 . 9 . 5 . 3 . 1 . 4 6 . 1 . . 5 Terminals 78 | . 4 . 3 . . . 4 3 . 4 . 3 . 10 . 5 . 4 10 1 . 8 . 3 . 2 . . . 4 5 . . . . 5 Fabricators 1 | . . . . . . . . . . . . . . . . 1 . . . . . . . . . . . . . . . . . . . . Repair Stations 2 | . . . . . . . . . . . . . . 2 . . . . . . . . . . . . . . . . . . . . . . Recycling Units 5 | . 1 . 2 . . . . . . . . . . 1 . . . . . . . . . 1 . . . . . . . . . . . . Scanalyzers 1 | . . . . . . . . . . . . . . . . . . 1 . . . . . . . . . . . . . . . . . . Garrison Access 11 | . . . . . . . . 1 . 1 . . . 2 . 1 . . . . . 1 . 1 . 1 . 1 . . 1 . 1 . . . Total Hacks 288 | . 20 . 13 . 2 . 14 9 . 18 . 11 . 39 . 12 . 11 25 3 . 26 . 14 . 12 . 1 . 18 21 . 1 . . 18 Successful 131 | . 6 . 5 . 2 . 6 6 . 7 . 3 . 18 . 5 . 5 17 . . 11 . 8 . 8 . 1 . 6 9 . 1 . . 7 Failed 157 | . 14 . 8 . . . 8 3 . 11 . 8 . 21 . 7 . 6 8 3 . 15 . 6 . 4 . . . 12 12 . . . . 11 Catastrophic 29 | . . . 2 . . . 1 1 . 1 . 1 . 4 . 2 . 1 . 2 . 1 . 1 . 1 . . . 4 4 . . . . 3 Database Lockouts . | . . . . . . . . . . . . . . . . . . . . . . . . . . . . . . . . . . . . . Manual 97 | . 6 . 6 . 1 . 7 3 . 4 . 2 . 9 . 1 . 3 9 1 1 10 . 6 . 7 . . . 6 3 . . . . 12 Terminals 248 | . 17 . 11 . . . 14 8 . 17 . 11 . 27 . 9 . 7 25 3 . 23 . 10 . 11 . . . 18 19 . . . . 18 Fabricators 2 | . . . . . . . . . . . . . . . . 2 . . . . . . . . . . . . . . . . . . . . Repair Stations 8 | . . . . . . . . . . . . . . 8 . . . . . . . . . . . . . . . . . . . . . . Recycling Units 8 | . 3 . 2 . . . . . . . . . . 2 . . . . . . . . . 1 . . . . . . . . . . . . Scanalyzers 4 | . . . . . . . . . . . . . . . . . . 4 . . . . . . . . . . . . . . . . . . Garrison Access 16 | . . . . . . . . 1 . 1 . . . 2 . 1 . . . . . 3 . 3 . 1 . 1 . . 2 . 1 . . . Terminal Hacks 87 | . 6 . 3 . 2 . 6 5 . 6 . 3 . 10 . 3 . 1 9 . . 7 . 5 . 6 . . . 5 6 . . . . 4 Record 4 | . 1 . . . 1 . . . . . . . . . . 1 . . . . . . . . . . . . . . 1 . . . . . Part Schematic 3 | . . . . . . . . . . 1 . . . . . . . . . . . 1 . 1 . . . . . . . . . . . . Robot Schematic 2 | . . . . . . . . . . . . . . . . . . . . . . 1 . . . 1 . . . . . . . . . . Robot Analysis 2 | . . . . . . . . . . . . . . 1 . . . . . . . . . . . . . . . . 1 . . . . . Prototype ID Bank 11 | . 1 . . . . . 1 2 . 2 . . . 1 . 1 . . . . . 1 . . . 1 . . . . . . . . . 1 Open Door 8 | . . . . . . . . . . . . . . . . . . . 7 . . . . . . . . . . 1 . . . . . . Level Access Points 2 | . . . . . . . . . . . . . . . . . . . . . . 1 . . . . . . . . . . . . . 1 Branch Access Points 4 | . 1 . 1 . . . 1 . . . . 1 . . . . . . . . . . . . . . . . . . . . . . . . Emergency Access Points 4 | . . . 1 . . . . 1 . . . . . . . . . . . . . 1 . . . . . . . . . . . . . 1 Terminal Index 3 | . . . . . . . 1 . . . . . . 1 . . . . . . . . . . . . . . . 1 . . . . . . Garrison Index 2 | . . . . . . . . . . . . . . . . . . . . . . . . 1 . . . . . . 1 . . . . . Alert Level 2 | . . . . . . . . . . 1 . . . . . . . . . . . . . . . . . . . . . . . . . 1 Unreport Threat 19 | . 1 . . . . . 1 1 . . . 2 . 2 . . . 1 1 . . . . 2 . 3 . . . 3 2 . . . . . Locate Traps 8 | . 2 . . . . . 1 . . 1 . . . . . 1 . . . . . 1 . 1 . . . . . . 1 . . . . . Patrol Status 1 | . . . . . . . 1 . . . . . . . . . . . . . . . . . . . . . . . . . . . . . Recall Reinforcements 2 | . . . . . . . . . . . . . . 1 . . . . 1 . . . . . . . . . . . . . . . . . Hauler Manifests 4 | . . . . . . . . 1 . 1 . . . 1 . . . . . . . . . . . 1 . . . . . . . . . . Registered Components 1 | . . . 1 . . . . . . . . . . . . . . . . . . . . . . . . . . . . . . . . . Zone Layout 4 | . . . . . . . . . . . . . . 3 . . . . . . . 1 . . . . . . . . . . . . . . EX-Prototype ID Bank 1 | . . . . . 1 . . . . . . . . . . . . . . . . . . . . . . . . . . . . . . . Fabricator Hacks 1 | . . . . . . . . . . . . . . . . 1 . . . . . . . . . . . . . . . . . . . . Build 1 | . . . . . . . . . . . . . . . . 1 . . . . . . . . . . . . . . . . . . . . Repair Station Hacks 4 | . . . . . . . . . . . . . . 4 . . . . . . . . . . . . . . . . . . . . . . Scan Component 3 | . . . . . . . . . . . . . . 3 . . . . . . . . . . . . . . . . . . . . . . Repair 1 | . . . . . . . . . . . . . . 1 . . . . . . . . . . . . . . . . . . . . . . Recycling Unit Hacks 2 | . . . . . . . . . . . . . . 1 . . . . . . . . . 1 . . . . . . . . . . . . Retrieve Matter 1 | . . . . . . . . . . . . . . 1 . . . . . . . . . . . . . . . . . . . . . . Retrieve Components 1 | . . . . . . . . . . . . . . . . . . . . . . . . 1 . . . . . . . . . . . . Scanalyzer 3 | . . . . . . . . . . . . . . . . . . 3 . . . . . . . . . . . . . . . . . . Insert Component 1 | . . . . . . . . . . . . . . . . . . 1 . . . . . . . . . . . . . . . . . . Analyze 2 | . . . . . . . . . . . . . . . . . . 2 . . . . . . . . . . . . . . . . . . Garrison Access Hacks 11 | . . . . . . . . 1 . 1 . . . 2 . 1 . . . . . 1 . 1 . 1 . 1 . . 1 . 1 . . . Unlock Access 11 | . . . . . . . . 1 . 1 . . . 2 . 1 . . . . . 1 . 1 . 1 . 1 . . 1 . 1 . . . Unauthorized Hacks 23 | . . . 2 . . . . . . . . . . 1 . . . 1 8 . . 3 . 1 . 1 . . . 1 2 . . . . 3 Terminals 20 | . . . . . . . . . . . . . . 1 . . . 1 8 . . 3 . . . 1 . . . 1 2 . . . . 3 Track 5 | . . . . . . . . . . . . . . . . . . . 3 . . . . . . . . . . . 1 . . . . 1 Botnet 13 | . . . . . . . . . . . . . . 1 . . . 1 5 . . 3 . . . . . . . . 1 . . . . 2 Detonate 1 | . . . . . . . . . . . . . . . . . . . . . . . . . . 1 . . . . . . . . . . Disrupt 1 | . . . . . . . . . . . . . . . . . . . . . . . . . . . . . . 1 . . . . . . Fabricators . | . . . . . . . . . . . . . . . . . . . . . . . . . . . . . . . . . . . . . Repair Stations . | . . . . . . . . . . . . . . . . . . . . . . . . . . . . . . . . . . . . . Recycling Units 2 | . . . 2 . . . . . . . . . . . . . . . . . . . . . . . . . . . . . . . . . Tunnel 2 | . . . 2 . . . . . . . . . . . . . . . . . . . . . . . . . . . . . . . . . Scanalyzers . | . . . . . . . . . . . . . . . . . . . . . . . . . . . . . . . . . . . . . Garrison Access 1 | . . . . . . . . . . . . . . . . . . . . . . . . 1 . . . . . . . . . . . . Broadcast 1 | . . . . . . . . . . . . . . . . . . . . . . . . 1 . . . . . . . . . . . . Data Cores Recovered 1 | . . . . . . . . . . . . . . . . . . . 1 . . . . . . . . . . . . . . . . . Used 1 | . . . . . . . . . . . . . . . . . . . 1 . . . . . . . . . . . . . . . . . Hacking Detections 84 | . 5 . 3 . . . 4 3 . 5 . 3 . 13 . 7 . 4 8 1 . 9 . 4 . 2 . . . 3 5 . . . . 5 Full Trace Events 11 | . 1 . 1 . . . 1 . . 1 . 1 . 1 . 1 . . 1 1 . 1 . . . . . . . . 1 . . . . . Feedback Events . | . . . . . . . . . . . . . . . . . . . . . . . . . . . . . . . . . . . . . Feedback Blocked . | . . . . . . . . . . . . . . . . . . . . . . . . . . . . . . . . . . . . . Robot Schematics Acquired 2 | . . . . . . . . . . . . . . . . . . . . . . 1 . . . 1 . . . . . . . . . . Robots Built . | . . . . . . . . . . . . . . . . . . . . . . . . . . . . . . . . . . . . . Matter . | . . . . . . . . . . . . . . . . . . . . . . . . . . . . . . . . . . . . . Time . | . . . . . . . . . . . . . . . . . . . . . . . . . . . . . . . . . . . . . Total Robot Build Rating . | . . . . . . . . . . . . . . . . . . . . . . . . . . . . . . . . . . . . . Part Schematics Acquired 4 | . . . . . . . . . . 1 . . . . . . . 1 . . . 1 . 1 . . . . . . . . . . . . Parts Built . | . . . . . . . . . . . . . . . . . . . . . . . . . . . . . . . . . . . . . Matter 256 | . . . . . . . . . . . . . . . . 256 . . . . . . . . . . . . . . . . . . . . Time 128 | . . . . . . . . . . . . . . . . 128 . . . . . . . . . . . . . . . . . . . . Total Part Build Rating . | . . . . . . . . . . . . . . . . . . . . . . . . . . . . . . . . . . . . . Parts Repaired 1 | . . . . . . . . . . . . . . 1 . . . . . . . . . . . . . . . . . . . . . . Time 95 | . . . . . . . . . . . . . . 95 . . . . . . . . . . . . . . . . . . . . . . Parts Recycled . | . . . . . . . . . . . . . . . . . . . . . . . . . . . . . . . . . . . . . Recycled Matter . | . . . . . . . . . . . . . . . . . . . . . . . . . . . . . . . . . . . . . Retrieved Matter . | . . . . . . . . . . . . . . . . . . . . . . . . . . . . . . . . . . . . . Retrieved Components . | . . . . . . . . . . . . . . . . . . . . . . . . . . . . . . . . . . . . . Parts Scanalyzed 1 | . . . . . . . . . . . . . . . . . . 1 . . . . . . . . . . . . . . . . . . Part Schematics Acquired 1 | . . . . . . . . . . . . . . . . . . 1 . . . . . . . . . . . . . . . . . . Parts Damaged . | . . . . . . . . . . . . . . . . . . . . . . . . . . . . . . . . . . . . . Bothacking | -11 -10 -10 -9 -9 -9 -8 -8 -7 -7 -7 -7 -6 -6 -6 -6 -6 -6 -5 -5 -5 -5 -5 -5 -4 -4 -4 -4 -3 -3 -2 -2 -2 -1 -1 -1 -1 ------------ Run | Scr Mat Min Mat Min Exi Min Mat Fac Gar Fac Gar Fac Was Fac Gar Fac Gar Fac Ext Cet Arc Hub Gar Fac Gar Fac Gar Res Gar Res Qua Gar Acc Gar Acc Com Used RIF Installer 7 | . . . . . . . . . 1 . . . . . 1 . 1 . . . . . 1 . 1 . 1 . 1 . . . . . . . Coupler Efficiency 1 | . . . . . . . . . . . . . . . . . . . . . . . . . . . . . 1 . . . . . . . Command Fork 1 | . . . . . . . . . . . . . . . . . . . . . . . . . . . 1 . . . . . . . . . Robot Detection 1 | . . . . . . . . . . . . . . . . . 1 . . . . . . . . . . . . . . . . . . . Program Shield 1 | . . . . . . . . . . . . . . . 1 . . . . . . . . . . . . . . . . . . . . . Autooverride 2 | . . . . . . . . . . . . . . . . . . . . . . . 1 . 1 . . . . . . . . . . . Robots Hacked 9 | . . . . . . . . . . . . . . . . . . . . . . . . . . 3 3 . 3 . . . . . . . Non-combat . | . . . . . . . . . . . . . . . . . . . . . . . . . . . . . . . . . . . . . Combat 9 | . . . . . . . . . . . . . . . . . . . . . . . . . . 3 3 . 3 . . . . . . . Autooverrided 9 | . . . . . . . . . . . . . . . . . . . . . . . . . . 3 3 . 3 . . . . . . . Robot Hacks Applied . | . . . . . . . . . . . . . . . . . . . . . . . . . . . . . . . . . . . . . Relay Couplers Released 44 | . . . . . . . . . 8 . 4 . . . 9 . . . . . . . 5 . 5 . 5 . 2 . . . . 6 . . Machine Destruction 44 | . . . . . . . . . 8 . 4 . . . 9 . . . . . . . 5 . 5 . 5 . 2 . . . . 6 . . Attached 3 | . . . . . . . . . . . . . . . 1 . . . . . . . 1 . 1 . . . . . . . . . . . Robots Rewired 39 | . . . . . . . . . . . 4 1 . . 3 . . . 24 . . . . . 7 . . . . . . . . . . . Allies Hacked 1 | . . . . . . . . . . . . . . . . . . . . . . 1 . . . . . . . . . . . . . . Hacks Repelled . | . . . . . . . . . . . . . . . . . . . . . . . . . . . . . . . . . . . . . Allies | -11 -10 -10 -9 -9 -9 -8 -8 -7 -7 -7 -7 -6 -6 -6 -6 -6 -6 -5 -5 -5 -5 -5 -5 -4 -4 -4 -4 -3 -3 -2 -2 -2 -1 -1 -1 -1 -------- Run | Scr Mat Min Mat Min Exi Min Mat Fac Gar Fac Gar Fac Was Fac Gar Fac Gar Fac Ext Cet Arc Hub Gar Fac Gar Fac Gar Res Gar Res Qua Gar Acc Gar Acc Com Total Allies 82 | . . 3 . . . . . . . . 4 1 . 2 3 . . . 34 5 . . . . 7 3 3 . 3 . . . . . . 14 Largest Group 25 | . . 3 3 . . . . . . . 4 4 1 2 3 . . . 25 16 9 9 . . 5 1 1 . 1 . . . . . . 8 Highest-Rated Group 793 | . . 40 40 . . . . . . . 124 120 12 62 114 . . . 793 720 551 551 . . 168 47 47 . 47 . . . . . . 113 Highest-Rated Ally 156 | . . 16 16 . . . . . . . 32 32 12 31 38 . . . 156 156 94 94 . . 46 47 47 . 47 . . . . . . 15 Total Orders . | . . . . . . . . . . . . . . . . . . . . . . . . . . . . . . . . . . . . . Ally Attacks 524 | . . . 18 . . . . . . . 26 5 22 13 19 . . . 151 89 16 39 . . 35 8 3 . 8 . . . . . . 72 Total Damage 11438 | . . . 237 . . . . . . . 810 149 306 231 591 . . . 3156 1618 627 1434 . . 506 59 96 . 258 . . . . . . 1360 Kills 63 | . . . 3 . . . . . . . 8 1 1 . 4 . . . 20 11 3 11 . . . . . . . . . . . . . 1 Allies Corrupted 3 | . . . . . . . . . . . . . . . . . . . . . . 2 . . . . 1 . . . . . . . . . Allies Melted . | . . . . . . . . . . . . . . . . . . . . . . . . . . . . . . . . . . . . . Intel | -11 -10 -10 -9 -9 -9 -8 -8 -7 -7 -7 -7 -6 -6 -6 -6 -6 -6 -5 -5 -5 -5 -5 -5 -4 -4 -4 -4 -3 -3 -2 -2 -2 -1 -1 -1 -1 ------- Run | Scr Mat Min Mat Min Exi Min Mat Fac Gar Fac Gar Fac Was Fac Gar Fac Gar Fac Ext Cet Arc Hub Gar Fac Gar Fac Gar Res Gar Res Qua Gar Acc Gar Acc Com Robot Analysis Total 2 | . . . . . . . . . . . . . . 1 . . . . . . . . . . . . . . . . 1 . . . . . Derelict Logs Recovered 4 | . . 2 . 2 . . . . . . . . . . . . . . . . . . . . . . . . . . . . . . . . Drone Launches . | . . . . . . . . . . . . . . . . . . . . . . . . . . . . . . . . . . . . . Drone Recoveries . | . . . . . . . . . . . . . . . . . . . . . . . . . . . . . . . . . . . . . Exploration | -11 -10 -10 -9 -9 -9 -8 -8 -7 -7 -7 -7 -6 -6 -6 -6 -6 -6 -5 -5 -5 -5 -5 -5 -4 -4 -4 -4 -3 -3 -2 -2 -2 -1 -1 -1 -1 ------------- Run | Scr Mat Min Mat Min Exi Min Mat Fac Gar Fac Gar Fac Was Fac Gar Fac Gar Fac Ext Cet Arc Hub Gar Fac Gar Fac Gar Res Gar Res Qua Gar Acc Gar Acc Com Turns Passed 19965 | 53 362 358 559 416 716 360 383 548 950 518 926 196 137 1212 600 596 517 870 967 278 77 345 941 267 929 926 552 26 433 313 356 774 7 754 514 1229 Spaces Moved 20205 | 48 317 377 338 425 627 398 281 446 799 437 756 315 144 1826 679 890 552 981 805 216 66 539 870 226 934 909 525 49 442 536 528 721 13 800 617 773 Core 4 | 4 . . . . . . . . . . . . . . . . . . . . . . . . . . . . . . . . . . . . Treads . | . . . . . . . . . . . . . . . . . . . . . . . . . . . . . . . . . . . . . Legs . | . . . . . . . . . . . . . . . . . . . . . . . . . . . . . . . . . . . . . Wheels 4397 | 44 317 377 338 425 627 398 281 446 799 345 . . . . . . . . . . . . . . . . . . . . . . . . . . Hover 15804 | . . . . . . . . . . 92 756 315 144 1826 679 890 552 981 805 216 66 539 870 226 934 909 525 49 442 536 528 721 13 800 617 773 Flight . | . . . . . . . . . . . . . . . . . . . . . . . . . . . . . . . . . . . . . Fastest Speed 36 | 50 80 80 80 85 85 85 85 83 83 42 42 42 45 45 45 43 48 48 40 40 40 36 40 45 48 48 48 48 43 43 43 48 48 48 44 44 Average Speed 54 | 86 80 80 84 85 85 85 85 86 83 79 48 47 45 45 45 47 48 48 47 41 40 39 43 46 52 48 48 48 43 43 47 48 48 48 45 44 Slowest Speed 118 | 90 90 80 85 85 100 85 85 95 83 111 102 102 45 45 45 51 48 48 56 45 40 40 45 52 105 118 48 48 48 43 48 58 48 48 48 44 Overloaded Moves 41 | . . . . . . . . . . . . . . . . . . . . . . 41 . . . . . . . . . . . . . . Propulsion Burnouts . | . . . . . . . . . . . . . . . . . . . . . . . . . . . . . . . . . . . . . Robots Hopped . | . . . . . . . . . . . . . . . . . . . . . . . . . . . . . . . . . . . . . Cave-ins Triggered 1 | . . . . . . . . . . . . . . . . . . . . . . . . . . . . . . . . . . . . 1 Exploration Rate (%) 53 | 2 63 93 47 88 60 85 26 17 91 15 82 10 93 56 85 30 77 38 86 63 72 54 86 9 80 37 67 3 71 19 53 79 1 77 22 28 Regions Visited 36 Branch Regions 10 Pre-discovered Areas 4 | . . . 2 1 1 . . . . . . . . . . . . . . . . . . . . . . . . . . . . . . . Known Exits Taken 19 | . 1 . 1 . . . 1 1 . 1 . . . 1 . 1 . 1 1 1 1 1 . 1 . 1 . 1 . 1 1 . 1 . 1 . Unknown Exits Taken 5 | 1 . 1 . 1 1 1 . . . . . . . . . . . . . . . . . . . . . . . . . . . . . . Scrap Searched 4 | . . 1 . 2 . 1 . . . . . . . . . . . . . . . . . . . . . . . . . . . . . . Spaces Dug 51 | . . 9 . . . . . . . . . . . . . . . 16 . . . 1 . 2 . 16 . . . 6 . . . . . 1 Terrain Destroyed 846 | . . 16 . . 36 6 8 1 20 3 83 . . 11 26 1 8 25 9 6 . 181 18 15 22 168 10 . 10 7 . 11 . 33 5 107 Melee 29 | . . . . . . . . . . . . . . . . . . 16 . . . 1 . 2 . 10 . . . . . . . . . . Projectile 345 | . . . . . . 6 8 1 20 3 11 . . 11 26 1 8 9 9 6 . 11 18 13 18 56 10 . 10 7 . 11 . 33 5 34 AOE 472 | . . 16 . . 36 . . . . . 72 . . . . . . . . . . 169 . . 4 102 . . . . . . . . . 73 Terrain Rammed . | . . . . . . . . . . . . . . . . . . . . . . . . . . . . . . . . . . . . . Walls Destroyed . | . . . . . . . . . . . . . . . . . . . . . . . . . . . . . . . . . . . . . Machines Disabled . | . . . . . . . . . . . . . . . . . . . . . . . . . . . . . . . . . . . . . Actions | -11 -10 -10 -9 -9 -9 -8 -8 -7 -7 -7 -7 -6 -6 -6 -6 -6 -6 -5 -5 -5 -5 -5 -5 -4 -4 -4 -4 -3 -3 -2 -2 -2 -1 -1 -1 -1 --------- Run | Scr Mat Min Mat Min Exi Min Mat Fac Gar Fac Gar Fac Was Fac Gar Fac Gar Fac Ext Cet Arc Hub Gar Fac Gar Fac Gar Res Gar Res Qua Gar Acc Gar Acc Com Total 26998 | 54 379 413 483 467 719 412 390 570 1021 571 1219 357 190 2129 885 1035 735 1262 1327 386 114 644 1360 368 1267 1256 753 51 617 605 618 1048 13 1056 815 1409 Wait 2978 | 1 23 18 35 12 3 1 35 33 50 33 198 25 5 156 70 82 74 107 195 116 39 56 308 113 88 198 88 2 89 22 38 107 . 81 130 347 Move 20173 | 47 316 376 337 424 626 397 280 446 798 436 754 315 143 1825 678 890 551 980 804 215 65 538 869 226 932 909 524 49 441 535 528 720 13 799 616 771 Hop . | . . . . . . . . . . . . . . . . . . . . . . . . . . . . . . . . . . . . . Pick Up 76 | . 1 1 1 5 6 1 1 4 5 1 1 1 5 4 . 1 . 4 . 1 . 1 2 1 2 . 4 . 1 3 3 6 . 3 3 4 Fast Attach 222 | 5 6 1 5 1 6 . 8 2 . 10 5 3 . 15 5 13 1 7 6 7 . . 1 4 9 6 2 . 3 10 11 34 . 16 6 14 Attach 26 | . . . . . 1 . . 2 1 . . 1 . . 1 . . 2 . . . . . . 1 . . . 1 . 5 2 . 2 1 6 Detach 10 | . . . . . 1 . . . . . . . . . . . . 1 . . . . . . . . . . . . 3 1 . . . 4 Swap 58 | . . 3 2 1 2 1 . . 1 . . 1 5 2 1 1 . 4 1 2 . . 4 . 5 6 . . . . 2 3 . 4 1 6 Drop 259 | . 4 2 5 4 11 2 5 3 4 9 6 3 4 16 4 10 . 11 5 8 . 1 3 6 12 4 6 . 2 10 12 40 . 19 8 20 Fire 1600 | 1 22 12 72 7 48 10 43 45 80 41 109 3 21 68 67 22 57 91 50 23 2 36 53 7 68 85 61 . 41 14 13 72 . 75 23 158 Melee 59 | . . . . . . . . . . . . . . . . . . 21 1 . . 1 . 7 11 18 . . . . . . . . . . Ram 2 | . . . . . . . . . . . . . . 1 . . . . . . . . . . . . . . . . . . . . 1 . Kick . | . . . . . . . . . . . . . . . . . . . . . . . . . . . . . . . . . . . . . Crush . | . . . . . . . . . . . . . . . . . . . . . . . . . . . . . . . . . . . . . Escape Stasis 283 | . . . . . . . . . 40 24 39 . . . 16 . 4 . 16 . . . 72 . 26 . 8 . 5 . . 6 . 11 15 1 Rewire 363 | . . . . . . . . . . . 44 5 . 1 11 . . . 217 . . . . . 85 . . . . . . . . . . . Trap 3 | . . . . . 3 . . . . . . . . . . . . . . . . . . . . . . . . . . . . . . . Miscellaneous 886 | . 7 . 26 13 12 . 18 35 42 17 63 . 7 41 32 16 48 34 32 14 8 11 48 4 28 30 60 . 34 11 3 57 . 46 11 78 Route ------- -11/Scrapyard -10/Materials (discovered 4 exits: *Mat x2 / *Min x2) -10/Mines (discovered 2 exits: *Mat x2) -9/Materials (discovered 3 exits: *Mat / *Min x2) -9/Mines (discovered 3 exits: *Mat x2 / *Exi) -9/Exiles -8/Mines -8/Materials (discovered 2 exits: *Fac x2) -7/Factory (discovered 2 exits: Sto / Gar) -7/Garrison (discovered 3 exits: *Fac x3) -7/Factory (discovered 2 exits: *Fac / Gar) -7/Garrison (discovered 2 exits: *Fac x2) -6/Factory (discovered 2 exits: Low x2) -6/Waste -6/Factory (discovered 4 exits: *Fac / *Low x2 / Gar) -6/Garrison (discovered 3 exits: *Fac x3) -6/Factory (discovered 2 exits: *Fac / Gar) -6/Garrison (discovered 3 exits: *Fac x3) -5/Factory (discovered 2 exits: *Fac / *Ext) -5/Extension (discovered 3 exits: *Fac x2 / *Cet) -5/Cetus (discovered 2 exits: *Fac / *Arc) -5/Archives -5/Hub_04(d) (discovered 5 exits: *Fac x4 / Gar) -5/Garrison (discovered 3 exits: *Fac x3) -4/Factory (discovered 2 exits: *Res / Gar) -4/Garrison (discovered 3 exits: *Fac x3) -4/Factory (discovered 3 exits: *Res / [Upp] / Gar) -4/Garrison (discovered 2 exits: *Res x2) -3/Research -3/Garrison (discovered 3 exits: *Res x3) -2/Research -2/Quarantine (discovered 2 exits: Acc / Gar) -2/Garrison (discovered 3 exits: *Acc x3) -1/Access -1/Garrison (discovered 3 exits: *Acc x3) -1/Access (discovered 2 exits: Sur / *Com) -1/Command (discovered 2 exits: *Sur x2) To Fleet Rendezvous History --------- Turn | Location | Event 3 | -11/Scrapyard | Upgraded with Propulsion slot (x1) 3 | -11/Scrapyard | Upgraded with Utility slot (x1) 3 | -11/Scrapyard | Upgraded with Weapon slot (x1) 16 | -11/Scrapyard | Discovered new exit (range 15) 54 | -11/Scrapyard | Entered Materials 262 | -10/Materials | Discovered new exit (range 7) 289 | -10/Materials | Identified exit to Mines 291 | -10/Materials | Discovered new exit (range 15) 300 | -10/Materials | Build established: Mutant 416 | -10/Materials | Entered Mines 420 | -10/Mines | Reached level 2 439 | -10/Mines | Met a Derelict bent on vengeance 467 | -10/Mines | Assisted by bots powering up and referring to "LRC-V3" 564 | -10/Mines | Received a Rocket Launcher from a helpful Derelict 582 | -10/Mines | Learned Materials emergency access door positions 678 | -10/Mines | Discovered new exit (range 12) 695 | -10/Mines | Discovered new exit (range 13) 774 | -10/Mines | Entered Materials 774 | -9/Materials | Accompanied by 3 allies 776 | -9/Materials | Reached level 3 952 | -9/Materials | Discovered new exit (range 3) 1011 | -9/Materials | Reached level 4 1280 | -9/Materials | Identified exit to Mines 1333 | -9/Materials | Entered Mines 1335 | -9/Mines | Reached level 5 1364 | -9/Mines | Joined a pair of Derelicts in attacking an 0b10 outpost 1452 | -9/Mines | Discovered new exit (range 15) 1608 | -9/Mines | Learned location of 1 exit from Materials 1625 | -9/Mines | Found a hidden stash of uninstalled traps 1669 | -9/Mines | Discovered new exit (range 10) 1745 | -9/Mines | Deemed a non-threat by the Exiles lab entrance 1745 | -9/Mines | Discovered new exit (range 5) 1749 | -9/Mines | Entered Exiles 1773 | -9/Exiles | Discovered new exit (range 14) 1814 | -9/Exiles | Met 8R-AWN 1828 | -9/Exiles | Met EX-HEX 1867 | -9/Exiles | Met EX-BIN 1877 | -9/Exiles | Aligned with FarCom system 1878 | -9/Exiles | Given EX-Vault access code 1898 | -9/Exiles | Opened EX-Vault 1918 | -9/Exiles | Warned to stay clear of 0b10 Research branches 1942 | -9/Exiles | Met EX-DEC 1946 | -9/Exiles | Learned location of Zion (-6) 2097 | -9/Exiles | Attacked by the Exiles 2224 | -9/Exiles | Core integrity fell below 50% 2259 | -9/Exiles | Destroyed 8R-AWN 2282 | -9/Exiles | Found Prototype Ballistic Gun 2282 | -9/Exiles | Identified 8R-AWN's Boregun 2285 | -9/Exiles | Found Prototype Device 2285 | -9/Exiles | Identified AS-neutralizer No. 17b 2293 | -9/Exiles | Upgraded with Utility slot (x1) 2293 | -9/Exiles | Found Prototype Processor 2293 | -9/Exiles | Identified Exp. Targeting Computer 2382 | -9/Exiles | Found Latent Energy Streamer 2465 | -9/Exiles | Left Exiles lab with Latent Energy Streamer 2465 | -9/Exiles | Entered Mines 2533 | -8/Mines | Discovered new exit (range 8) 2592 | -8/Mines | Build established: Scavenger-Mutant 2825 | -8/Mines | Entered Materials 2826 | -8/Materials | Identified exit to Factory 2827 | -8/Materials | Reached level 6 2828 | -8/Materials | Upgraded with Utility slot (x1) 2863 | -8/Materials | Reached level 7 2965 | -8/Materials | Upgraded with Weapon slot (x1) 3005 | -8/Materials | Discovered exit to Factory (range 13) 3152 | -8/Materials | Reached level 8 3208 | -8/Materials | Entered Factory 3209 | -7/Factory | Identified exit to Storage 3210 | -7/Factory | Reached level 9 3212 | -7/Factory | Upgraded with Propulsion slot (x1) 3212 | -7/Factory | Upgraded with Utility slot (x1) 3262 | -7/Factory | Build established: Scavenger-Gunner 3610 | -7/Factory | Reached level 10 3626 | -7/Factory | Upgraded with Utility slot (x1) 3714 | -7/Factory | Garrison activated, responded to threat 3752 | -7/Factory | Identified exit to Garrison 3756 | -7/Factory | Entered Garrison 3811 | -7/Garrison | Reached level 11 3876 | -7/Garrison | Triggered checkpoint 3881 | -7/Garrison | Triggered checkpoint 3906 | -7/Garrison | Destroyed 7 combat bots 3958 | -7/Garrison | Triggered checkpoint 4000 | -7/Garrison | Discovered new exit (range 14) 4011 | -7/Garrison | Identified exit to Factory 4032 | -7/Garrison | Reached level 12 4151 | -7/Garrison | Discovered exit to Factory (range 12) 4166 | -7/Garrison | Installed Relay Interface Framework 4199 | -7/Garrison | Triggered checkpoint 4260 | -7/Garrison | Garrison Relay disabled 4270 | -7/Garrison | Triggered checkpoint 4293 | -7/Garrison | Reached level 13 4297 | -7/Garrison | Upgraded with Utility slot (x1) 4340 | -7/Garrison | Triggered checkpoint 4382 | -7/Garrison | Garrison Relay disabled 4399 | -7/Garrison | Discovered exit to Factory (range 14) 4494 | -7/Garrison | Triggered checkpoint 4518 | -7/Garrison | Garrison Relay disabled 4583 | -7/Garrison | Garrison Relay disabled 4706 | -7/Garrison | Entered Factory 4817 | -7/Factory | Reached level 14 4940 | -7/Factory | Identified exit to Garrison 5150 | -7/Factory | Discovered new exit (range 7) 5175 | -7/Factory | Upgraded with Power slot (x1) 5224 | -7/Factory | Entered Garrison 5236 | -7/Garrison | Triggered checkpoint 5258 | -7/Garrison | Reached level 15 5283 | -7/Garrison | Garrison Relay disabled 5306 | -7/Garrison | Phase Generator disabled 5340 | -7/Garrison | Triggered checkpoint 5344 | -7/Garrison | Triggered checkpoint 5412 | -7/Garrison | Triggered checkpoint 5470 | -7/Garrison | Garrison Relay disabled 5472 | -7/Garrison | Destroyed 13 combat bots 5522 | -7/Garrison | Discovered new exit (range 8) 5530 | -7/Garrison | Reached level 16 5681 | -7/Garrison | Identified exit to Factory 5750 | -7/Garrison | Triggered checkpoint 5830 | -7/Garrison | Discovered exit to Factory (range 13) 5834 | -7/Garrison | Triggered checkpoint 5838 | -7/Garrison | Destroyed 7 combat bots 5886 | -7/Garrison | Garrison Relay disabled 5898 | -7/Garrison | Triggered checkpoint 5904 | -7/Garrison | Triggered checkpoint 5986 | -7/Garrison | Triggered checkpoint 6006 | -7/Garrison | High security lockdown imminent 6086 | -7/Garrison | High security lockdown engaged 6150 | -7/Garrison | Entered Factory 6150 | -6/Factory | Accompanied by 4 allies 6152 | -6/Factory | Reached level 17 6186 | -6/Factory | Upgraded with Propulsion slot (x1) 6186 | -6/Factory | Upgraded with Utility slot (x1) 6216 | -6/Factory | Identified exit to Lower Caves 6346 | -6/Factory | Sucked down chute 6346 | -6/Factory | Entered Waste 6348 | -6/Waste | Reached level 18 6360 | -6/Waste | 1 allies followed down the chute 6361 | -6/Waste | EMP discharged 6361 | -6/Waste | Found Broken Gamma Bomb Array 6373 | -6/Waste | Destroyed C-40 Crusher 6385 | -6/Waste | Destroyed C-40 Crusher 6391 | -6/Waste | Spotted C-40 Crusher 6402 | -6/Waste | Destroyed C-40 Crusher 6406 | -6/Waste | Spotted C-40 Crusher 6414 | -6/Waste | Allies destroyed C-40 Crusher 6417 | -6/Waste | Spotted C-40 Crusher 6424 | -6/Waste | Destroyed C-40 Crusher 6447 | -6/Waste | Destroyed C-40 Crusher 6461 | -6/Waste | EMP discharged 6461 | -6/Waste | System corruption reached 10% 6462 | -6/Waste | Build established: Scavenger-Scout 6464 | -6/Waste | Discovered new exit (range 14) 6470 | -6/Waste | Identified exit to Factory 6483 | -6/Waste | Entered Factory 6483 | -6/Factory | Accompanied by 1 ally 6641 | -6/Factory | Identified exit to Garrison 6646 | -6/Factory | Garrison activated, responded to threat 6653 | -6/Factory | Found Prototype Processor 6653 | -6/Factory | Identified Exp. Signal Interpreter 6753 | -6/Factory | Discovered exit to Lower Caves (range 10) 6814 | -6/Factory | Build established: Scout 6894 | -6/Factory | Assembled infested ambush trap array 6935 | -6/Factory | Discovered new exit (range 8) 7022 | -6/Factory | Discovered exit to Lower Caves (range 15) 7061 | -6/Factory | Allied Derelicts emerged from ambush trap array 7255 | -6/Factory | Repaired Broken Gamma Bomb Array 7693 | -6/Factory | Identified exit to Garrison 7695 | -6/Factory | Entered Garrison 7697 | -6/Garrison | Reached level 19 7743 | -6/Garrison | Garrison Relay disabled 7806 | -6/Garrison | Triggered checkpoint 7848 | -6/Garrison | Destroyed 12 combat bots 7893 | -6/Garrison | Triggered checkpoint 7907 | -6/Garrison | Discovered new exit (range 13) 7950 | -6/Garrison | Triggered checkpoint 7977 | -6/Garrison | Garrison Relay disabled 7988 | -6/Garrison | Discovered new exit (range 14) 7994 | -6/Garrison | Identified exit to Factory 7997 | -6/Garrison | Expanded RIF knowledge: Program Shield 8033 | -6/Garrison | Discovered exit to Factory (range 8) 8044 | -6/Garrison | Triggered checkpoint 8067 | -6/Garrison | Garrison Relay disabled 8097 | -6/Garrison | Triggered checkpoint 8186 | -6/Garrison | Triggered checkpoint 8189 | -6/Garrison | Reached level 20 8226 | -6/Garrison | Triggered checkpoint 8272 | -6/Garrison | Garrison Relay disabled 8294 | -6/Garrison | Upgraded with Utility slot (x1) 8295 | -6/Garrison | Entered Factory 8321 | -6/Factory | Upgraded with Propulsion slot (x1) 8432 | -6/Factory | System corruption reached 30% 8509 | -6/Factory | Discovered new exit (range 15) 8516 | -6/Factory | Identified exit to Factory 8645 | -6/Factory | First assault squad dispatched 8693 | -6/Factory | Local fabrication network quarantined 8891 | -6/Factory | Identified exit to Garrison 8891 | -6/Factory | Entered Garrison 9023 | -6/Garrison | Triggered checkpoint 9050 | -6/Garrison | Triggered checkpoint 9075 | -6/Garrison | Destroyed 14 combat bots 9111 | -6/Garrison | Discovered exit to Factory (range 15) 9215 | -6/Garrison | Discovered exit to Factory (range 8) 9240 | -6/Garrison | Triggered checkpoint 9266 | -6/Garrison | Discovered exit to Factory (range 14) 9277 | -6/Garrison | Expanded RIF knowledge: Robot Detection 9324 | -6/Garrison | Triggered checkpoint 9354 | -6/Garrison | Triggered checkpoint 9408 | -6/Garrison | Entered Factory 9410 | -5/Factory | Reached level 21 9708 | -5/Factory | First assault squad dispatched 9795 | -5/Factory | Discovered new exit (range 16) 9848 | -5/Factory | Upgraded with Weapon slot (x1) 9907 | -5/Factory | Build established: Scavenger-Scout 9986 | -5/Factory | Reached level 22 10178 | -5/Factory | Destroyed 10 combat bots 10200 | -5/Factory | Upgraded with Power slot (x1) 10275 | -5/Factory | Discovered new exit (range 5) 10277 | -5/Factory | Identified exit to Extension 10278 | -5/Factory | Entered Extension 10390 | -5/Extension | Rescued a captive Derelict 10522 | -5/Extension | Reached level 23 10539 | -5/Extension | Rescued a captive Derelict 10539 | -5/Extension | Rescued a captive Derelict 10729 | -5/Extension | Build established: Commander-Scout 10853 | -5/Extension | Spotted B-75 Beast 10868 | -5/Extension | Allies destroyed B-75 Beast 10870 | -5/Extension | Spotted B-75 Beast 10880 | -5/Extension | Allies destroyed B-75 Beast 10903 | -5/Extension | Discovered new exit (range 14) 10909 | -5/Extension | Rescued a captive Derelict 10910 | -5/Extension | Rescued a captive Derelict 10944 | -5/Extension | Rescued a captive Derelict 10954 | -5/Extension | Rescued A7 11115 | -5/Extension | Rescued a captive Derelict 11125 | -5/Extension | Rescued a captive Derelict 11126 | -5/Extension | Rescued a captive Derelict 11208 | -5/Extension | Discovered new exit (range 10) 11208 | -5/Extension | Discovered new exit (range 6) 11219 | -5/Extension | Identified exit to Factory 11220 | -5/Extension | Upgraded with Propulsion slot (x1) 11223 | -5/Extension | Identified exit to Cetus 11245 | -5/Extension | Entered Cetus 11245 | -5/Cetus | Accompanied by 16 allies (A7) 11250 | -5/Cetus | Acquired a Cetus Manufacturing Module code from A7 11253 | -5/Cetus | Spotted Cetus Guard 11253 | -5/Cetus | Spotted Cetus Guard 11256 | -5/Cetus | Spotted Cetus Guard 11257 | -5/Cetus | Spotted Cetus Guard 11265 | -5/Cetus | Reached level 24 11265 | -5/Cetus | Destroyed Cetus Guard 11269 | -5/Cetus | Allies destroyed Cetus Guard 11272 | -5/Cetus | Allies destroyed Cetus Guard 11329 | -5/Cetus | Started Cetus Manufacturing Module 11354 | -5/Cetus | Manufactured an Enhanced Grunt 11359 | -5/Cetus | Discovered new exit (range 15) 11379 | -5/Cetus | Manufactured an Enhanced Grunt 11379 | -5/Cetus | Destroyed Cetus Guard 11386 | -5/Cetus | Spotted Cetus Guard 11395 | -5/Cetus | Allies destroyed Cetus Guard 11404 | -5/Cetus | Manufactured an Enhanced Grunt 11407 | -5/Cetus | Discovered exit to Factory (range 16) 11410 | -5/Cetus | Upgraded with Weapon slot (x1) 11429 | -5/Cetus | Manufactured an Enhanced Grunt 11430 | -5/Cetus | Identified exit to Archives 11454 | -5/Cetus | Manufactured an Enhanced Grunt 11499 | -5/Cetus | Destroyed A7 11505 | -5/Cetus | Extracted ID and sensor layout for unrecognized location from A7's data core 11523 | -5/Cetus | Entered Archives 11523 | -5/Archives | Accompanied by 9 allies 11548 | -5/Archives | Unable to access archive contents 11562 | -5/Archives | Unable to access archive contents 11563 | -5/Archives | Discovered new exit (range 16) 11569 | -5/Archives | Identified exit to Hub_04(d) 11600 | -5/Archives | Entered Hub_04(d) 11600 | -5/Hub_04(d) | Accompanied by 9 allies 11688 | -5/Hub_04(d) | Build established: Scavenger-Scout 11751 | -5/Hub_04(d) | Garrison activated, responded to threat 11840 | -5/Hub_04(d) | Reached level 25 11889 | -5/Hub_04(d) | Identified exit to Garrison 11900 | -5/Hub_04(d) | First assault squad dispatched 11911 | -5/Hub_04(d) | Network Hub disabled 11923 | -5/Hub_04(d) | Spotted Lightning 11923 | -5/Hub_04(d) | Spotted Lightning 11925 | -5/Hub_04(d) | Spotted Lightning 11925 | -5/Hub_04(d) | Spotted Lightning 11926 | -5/Hub_04(d) | Spotted Lightning 11930 | -5/Hub_04(d) | Spotted Lightning 11934 | -5/Hub_04(d) | Spotted Lightning 11934 | -5/Hub_04(d) | Spotted Lightning 11945 | -5/Hub_04(d) | Entered Garrison 12180 | -5/Garrison | Spotted B-75 Beast 12195 | -5/Garrison | Destroyed B-75 Beast 12312 | -5/Garrison | Triggered checkpoint 12334 | -5/Garrison | Discovered exit to Factory (range 20) 12366 | -5/Garrison | Expanded RIF knowledge: Autooverride 12417 | -5/Garrison | Triggered checkpoint 12436 | -5/Garrison | Discovered exit to Factory (range 12) 12463 | -5/Garrison | Triggered checkpoint 12505 | -5/Garrison | Garrison Relay disabled 12545 | -5/Garrison | Triggered checkpoint 12582 | -5/Garrison | Destroyed 7 combat bots 12617 | -5/Garrison | Discovered exit to Factory (range 12) 12630 | -5/Garrison | Triggered checkpoint 12647 | -5/Garrison | Garrison Relay disabled 12693 | -5/Garrison | Garrison Relay disabled 12742 | -5/Garrison | Triggered checkpoint 12776 | -5/Garrison | Garrison Relay disabled 12886 | -5/Garrison | Entered Factory 13011 | -4/Factory | Discovered new exit (range 16) 13125 | -4/Factory | Reached level 26 13131 | -4/Factory | Found Prototype Device 13131 | -4/Factory | Identified Exp. Terrain Scanner 13136 | -4/Factory | Identified exit to Research 13153 | -4/Factory | Identified exit to Garrison 13153 | -4/Factory | Entered Garrison 13202 | -4/Garrison | Garrison Relay disabled 13264 | -4/Garrison | Triggered checkpoint 13412 | -4/Garrison | Triggered checkpoint 13412 | -4/Garrison | Triggered checkpoint 13432 | -4/Garrison | Triggered checkpoint 13432 | -4/Garrison | Triggered checkpoint 13486 | -4/Garrison | Destroyed 9 combat bots 13495 | -4/Garrison | Discovered new exit (range 30) 13520 | -4/Garrison | Identified exit to Factory 13587 | -4/Garrison | Garrison Relay disabled 13590 | -4/Garrison | Triggered checkpoint 13595 | -4/Garrison | Destroyed 7 combat bots 13610 | -4/Garrison | Garrison Relay disabled 13708 | -4/Garrison | Discovered exit to Factory (range 19) 13740 | -4/Garrison | Expanded RIF knowledge: Autooverride 13857 | -4/Garrison | Discovered exit to Factory (range 11) 14082 | -4/Garrison | Entered Factory 14381 | -4/Factory | Discovered exit to Research (range 29) 14409 | -4/Factory | Spotted B-86 Titan 14422 | -4/Factory | Discovered new exit (range 20) 14444 | -4/Factory | Reached level 27 14582 | -4/Factory | First assault squad dispatched 14811 | -4/Factory | Spotted B-86 Titan 14980 | -4/Factory | Destroyed 15 combat bots 15008 | -4/Factory | Identified exit to Garrison 15008 | -4/Factory | Entered Garrison 15035 | -4/Garrison | Spotted B-86 Titan 15087 | -4/Garrison | Destroyed 8 combat bots 15091 | -4/Garrison | Destroyed B-86 Titan 15144 | -4/Garrison | Triggered checkpoint 15162 | -4/Garrison | Discovered exit to Research (range 16) 15178 | -4/Garrison | Triggered checkpoint 15194 | -4/Garrison | Garrison Relay disabled 15274 | -4/Garrison | Spotted B-86 Titan 15274 | -4/Garrison | Spotted B-86 Titan 15284 | -4/Garrison | Discovered exit to Research (range 16) 15294 | -4/Garrison | Expanded RIF knowledge: Command Fork 15308 | -4/Garrison | Triggered checkpoint 15349 | -4/Garrison | Garrison Relay disabled 15381 | -4/Garrison | Garrison Relay disabled 15442 | -4/Garrison | Destroyed B-86 Titan 15490 | -4/Garrison | Destroyed B-86 Titan 15532 | -4/Garrison | Triggered checkpoint 15538 | -4/Garrison | High security lockdown imminent 15560 | -4/Garrison | Entered Research 15562 | -3/Research | Reached level 28 15585 | -3/Research | Identified exit to Garrison 15586 | -3/Research | Entered Garrison 15589 | -3/Garrison | Expanded RIF knowledge: Coupler Efficiency 15638 | -3/Garrison | Triggered checkpoint 15674 | -3/Garrison | Discovered new exit (range 30) 15685 | -3/Garrison | Reached level 29 15693 | -3/Garrison | Triggered checkpoint 15713 | -3/Garrison | Triggered checkpoint 15721 | -3/Garrison | Destroyed 9 combat bots 15783 | -3/Garrison | Discovered new exit (range 26) 15835 | -3/Garrison | Discovered new exit (range 24) 15886 | -3/Garrison | Triggered checkpoint 15910 | -3/Garrison | Garrison Relay disabled 15917 | -3/Garrison | Upgraded with Utility slot (x1) 16018 | -3/Garrison | Identified exit to Research 16019 | -3/Garrison | Entered Research 16021 | -2/Research | Reached level 30 16317 | -2/Research | Found Prototype Device 16317 | -2/Research | Identified Exp. Shield Generator 16329 | -2/Research | Discovered new exit (range 10) 16332 | -2/Research | Identified exit to Quarantine 16332 | -2/Research | Entered Quarantine 16350 | -2/Quarantine | Found Alien Artifact 16350 | -2/Quarantine | Identified Matter Drive 16414 | -2/Quarantine | Reached level 31 16453 | -2/Quarantine | Found Alien Artifact 16453 | -2/Quarantine | Identified Stasis Generator 16536 | -2/Quarantine | Found Alien Artifact 16536 | -2/Quarantine | Identified Core Reset Matrix 16536 | -2/Quarantine | Used Core Reset Matrix 16540 | -2/Quarantine | Detected hypermatrix surge 16540 | -2/Quarantine | Sensed 8 artifacts in vicinity 16660 | -2/Quarantine | Found Subatomic Replicator 16662 | -2/Quarantine | Used Subatomic Replicator to replicate 8R-AWN's Boregun 16672 | -2/Quarantine | Discovered new exit (range 30) 16688 | -2/Quarantine | Identified exit to Garrison 16688 | -2/Quarantine | Entered Garrison 16760 | -2/Garrison | Found Unknown Device 16760 | -2/Garrison | Identified Antimissile System 16807 | -2/Garrison | Triggered checkpoint 16880 | -2/Garrison | Spotted B-90 Cyclops 16917 | -2/Garrison | Triggered checkpoint 16961 | -2/Garrison | Reached level 32 16972 | -2/Garrison | Destroyed B-90 Cyclops 17030 | -2/Garrison | Destroyed 10 combat bots 17073 | -2/Garrison | Discovered new exit (range 15) 17082 | -2/Garrison | Identified exit to Access 17256 | -2/Garrison | Triggered checkpoint 17268 | -2/Garrison | Triggered checkpoint 17324 | -2/Garrison | Discovered exit to Access (range 13) 17383 | -2/Garrison | Triggered checkpoint 17446 | -2/Garrison | Discovered exit to Access (range 11) 17454 | -2/Garrison | Attempted to install RIF, but system incompatible 17455 | -2/Garrison | Attempted to install RIF, but system incompatible 17462 | -2/Garrison | Entered Access 17464 | -1/Access | Reached level 33 17469 | -1/Access | Identified exit to Garrison 17469 | -1/Access | Entered Garrison 17471 | -1/Garrison | Attempted to install RIF, but system incompatible 17538 | -1/Garrison | Reached level 34 17553 | -1/Garrison | Spotted B-99 Colossus 17562 | -1/Garrison | Destroyed 9 combat bots 17599 | -1/Garrison | Destroyed B-99 Colossus 17708 | -1/Garrison | Destroyed 11 combat bots 17747 | -1/Garrison | Discovered new exit (range 14) 17756 | -1/Garrison | Identified exit to Access 17842 | -1/Garrison | Triggered checkpoint 17872 | -1/Garrison | Upgraded with Utility slot (x1) 17879 | -1/Garrison | Destroyed 10 combat bots 17946 | -1/Garrison | Discovered exit to Access (range 23) 17985 | -1/Garrison | Triggered checkpoint 18009 | -1/Garrison | Garrison Relay disabled 18055 | -1/Garrison | Discovered exit to Access (range 24) 18058 | -1/Garrison | Triggered checkpoint 18059 | -1/Garrison | Reached level 35 18124 | -1/Garrison | Triggered checkpoint 18135 | -1/Garrison | Garrison Relay disabled 18223 | -1/Garrison | Entered Access 18289 | -1/Access | Found Prototype Device 18289 | -1/Access | Identified Exp. Thermal Defense Suite 18483 | -1/Access | Discovered new exit (range 29) 18708 | -1/Access | Discovered new exit (range 30) 18727 | -1/Access | Spotted B-99 Colossus 18737 | -1/Access | Identified exit to Command 18737 | -1/Access | Entered Command 18738 | -1/Command | Sensed 1 artifact in vicinity 18786 | -1/Command | Phase Generator disabled 18921 | -1/Command | Reached level 36 19015 | -1/Command | First assault squad dispatched 19064 | -1/Command | Identified exit to Surface 19129 | -1/Command | Spotted Combat Programmer 19136 | -1/Command | Spotted M Guard 19140 | -1/Command | Spotted Combat Programmer 19146 | -1/Command | Destroyed Combat Programmer 19154 | -1/Command | System corruption reached 10% 19160 | -1/Command | Core integrity fell below 50% 19167 | -1/Command | Emitted hypermatrix ping 19172 | -1/Command | Assembled emerged from beneath the floor 19174 | -1/Command | Spotted M Guard 19177 | -1/Command | Core integrity fell below 20% 19181 | -1/Command | Destroyed Combat Programmer 19285 | -1/Command | Assembled emerged from beneath the floor 19356 | -1/Command | Destroyed 13 combat bots 19378 | -1/Command | Found Prototype Device 19378 | -1/Command | Identified AEGIS Remote Shield 19389 | -1/Command | Destroyed M Guard 19389 | -1/Command | All MAIN.C guards destroyed 19404 | -1/Command | Found Prototype Device 19404 | -1/Command | Identified Thermal Barrier 19537 | -1/Command | Crushed by falling debris 19785 | -1/Command | 0b10 Conduit disabled 19791 | -1/Command | Met MAIN.C 19907 | -1/Command | MAIN.C activated Command garrisons 19965 | -1/Command | Spotted B-99 Colossus 19966 | *** | Heading to fleet! Last Messages --------------- 19943_ HV Slug penetrates Wall. 19944_ Acquired 110 matter. 19946_ Slug penetrates Wall. 19946_ Slug penetrates H-88 Terminator. 19946_ HV Slug penetrates H-88 Terminator. 19946_ HV Slug penetrates Wall. 19947_ Acquired 17 matter. 19949_ Slug penetrates H-88 Terminator. 19949_ System corrupted: Imp. KE Penetrator targeting data glitched. 19949_ Slug penetrates H-88 Terminator. 19949_ HV Slug penetrates H-88 Terminator. 19949_ H-88 Terminator suffers critical hit. 19949_ H-88 Terminator destroyed. 19949_ HV Slug penetrates Wall. 19950_ Acquired 23 matter. 19953_ R-10 Processor collects Hvy. Machine Gun. 19957_ R-10 Processor collects Adv. Targeting Computer. 19959_ R-10 Processor collects Unknown Leg. 19962_ System corrupted: Matter fused (-8). 19965_ W-44 Eye sends out distress signal. Map ----- +----------------------------------------------------+ | ????????????? """" ? ??? ?? #####""""""" | | ???????????????"" ?? ? # #####"" | | ?????????????? ?? #####""""" | | ??????????? ? ? ?? ? ? # ? #####""""""" | | ??????????? ? ? ? ? #####" " | | ??????#?? ? ######? ? ? #? #####"" """ | | ?????????? ???#?### ? ?+? #####"" """ | | ????????? ? ####?##? ? # ? ##### " """ | | ??????? # ?#?####? ?# ##### " | | ? ??????# ?####?? ? ? ? ##### " | | ??????#?# ??##?##? ?#? #####"" | | ?#???#?#? ##?#### #? ?? #####" | | ? ???##?# ? ####?## !] ? ##### | | ?????#?#? ?##?#?## ]] ###########" " | | ? ?????## ? ?#?##?# ] ##########"""" | | ?????####? ?####?## """ | | ? #? ? ?? """ " | | ???? ? ? ? ? ! """ " | | ??? ? ? ? #?#?######?# [ ##### """" | | ??? ?? ###?? ? #########=%[ ##### " "" | | ? ? ? ?#?? ???######??#=! ##### "" | | ??#? ?? ? ###?? ? ##?###### #?########## | | ??#?? ? ??## ? ######### ############ | | ??? ? ? ? ####? #######?# ##?####?#?## | | ?????? ?? # ## #### ############ | | #?#? ?? ? # ####+#### @ #?## #######?#### | | ??# ? ? #### ###?#?#?#?## | | #?? ? ? ? #### #?########## | | #?# ? w ####;;;#### ##?######### | | ????? ? ? ####;;;####+##"# ##?######### | | ??? ? ? # ! # #?###?###### | | ???? ?? ??? ! ? # + ####?##?##?? | | ???? ? ? ?? ?# ! # ############ | | ??#? ??? ????? ?# # ##?###?####? | | ???? ??? ?? ? # # ############ | | ?#??????? ? ?? ? ?# # ##?#??##???# | | ??#? ???? ??? ?? ####+####+###### #?#####????# | | ???? ?? ?????###+#??#? ? ?? ? ###? | | ????? # ? ? ?#?? ? ? ? ?#### | | ???????? ? # ? ?# ?? #?##??##?#???""#?### | | ???? ? ?? ?? ? ?# ? #? ? ??#?"""##?#? | | ????? ? ? ? ? ?? ? #? ? ? #### | | ??? ??? ? ? + ?????? ? # ? ?? ??? #### | | ???????? ?#? ?"? ? + ??# ? ??## | | ???? ??? ? ??#? ??""? ? ?? ? ?? # ##?? | | ????????#??##? ? ??""# ??#?? ????####?#?#?## | | ??? ????? ?#? ????"#? ? ?#? ?""?#####?##?##? | | ??????#?????##?????T??? ? # ???R"###?###?#?## | | ????????? ? ?? ?"## ?????? ??"?#?#??####?## | | ???????????????? ? "?#? ?# #??##?##?#?? | +----------------------------------------------------+ Best States ------------- Heat Dissipation 109 Energy Generation 85 Energy Capacity 970 Matter Stores 400 Matter Capacity 400 Sight Range 17 Robot Scan Range 26 Terrain Scan Range 30 Terrain Scan Density 310 Power Amplification 30 Corruption Prevention 20 Armor Coverage 300 Resistance: KI 20 Resistance: TH 30 Point Defense Rating 240 Weapon Cycling 25 Evasion (%) 60 Targeting Accuracy 18 Target Analysis 8 Armor Integrity Analysis 50 Recoil Reduction 6 Matter Filtering 30 Energy Filtering 30 Kinecelleration 40 Offensive Hacking 5 Defensive Hacking 5 Relay Coupler Types 58 Relay Coupler Value 1 Item Schematics ----------------- None Robot Schematics ------------------ None Fabricated ------------ Nothing Alien Tech Used ----------------- Matter Drive Stasis Generator Core Reset Matrix Subatomic Replicator Achievements -------------- None Challenges ------------ None RPGLIKE | -11 -10 -10 -9 -9 -9 -8 -8 -7 -7 -7 -7 -6 -6 -6 -6 -6 -6 -5 -5 -5 -5 -5 -5 -4 -4 -4 -4 -3 -3 -2 -2 -2 -1 -1 -1 -1 --------- Run | Scr Mat Min Mat Min Exi Min Mat Fac Gar Fac Gar Fac Was Fac Gar Fac Gar Fac Ext Cet Arc Hub Gar Fac Gar Fac Gar Res Gar Res Qua Gar Acc Gar Acc Com Levels Raised 35 | . . 1 2 1 . . 3 2 3 1 2 1 1 . 2 . . 2 1 1 . 1 . 1 . 1 . 1 1 1 1 1 1 2 . 1 XP Earned 56945 | 3000 710 850 4058 950 350 500 3340 3550 4887 1496 3068 1648 145 1265 1921 313 827 2305 2105 741 241 933 465 842 1357 919 688 979 982 1690 1747 1271 1457 2661 333 2351 XP Spent 55375 | 2925 50 . 385 2250 2740 . 2850 4820 4375 2050 . 3540 1500 . 2600 1400 . 1900 1700 2030 . 1870 . . 1275 1320 . . 2900 700 2550 . . 4580 1655 1410 Upgrades 111 | 10 1 . 2 3 11 . 7 8 12 3 . 4 1 . 1 1 . 2 1 4 . 8 . . 3 7 . . 1 1 2 . . 7 6 5 Power Slot 2 | . . . . . . . . . . 1 . . . . . . . 1 . . . . . . . . . . . . . . . . . . Propulsion Slot 5 | 1 . . . . . . . 1 . . . 1 . . . 1 . . 1 . . . . . . . . . . . . . . . . . Utility Slot 10 | 1 . . . . 1 . 1 2 1 . . 1 . . 1 . . . . . . . . . . . . . 1 . . . . 1 . . Weapon Slot 4 | 1 . . . . . . 1 . . . . . . . . . . 1 . 1 . . . . . . . . . . . . . . . . Core Integrity 32 | 1 . . 1 . 8 . . . . . . . . . . . . . . . . 2 . . . 6 . . . . . . . 6 4 4 Heat Dissipation 14 | . 1 . . . . . 4 2 . . . . . . . . . . . 3 . 3 . . . . . . . . . . . . 1 . Energy Generation 1 | . . . . . . . . . . . . . . . . . . . . . . . . . . 1 . . . . . . . . . . Matter Storage 2 | . . . . . . . . 1 . . . . . . . . . . . . . . . . . . . . . . . . . . 1 . Mass Support 1 | 1 . . . . . . . . . . . . . . . . . . . . . . . . . . . . . . . . . . . . Inventory Capacity 7 | 1 . . . 3 . . . . . 1 . . 1 . . . . . . . . . . . . . . . . . 1 . . . . . Sight Range 1 | . . . . . . . . . . . . . . . . . . . . . . 1 . . . . . . . . . . . . . . Sensor Range 13 | . . . . . . . . . 10 1 . . . . . . . . . . . . . . 2 . . . . . . . . . . . Terrain Scan Density 3 | . . . . . . . . . . . . 2 . . . . . . . . . . . . . . . . . . . . . . . 1 Ranged Accuracy 5 | 1 . . . . . . . . . . . . . . . . . . . . . 1 . . 1 . . . . 1 1 . . . . . Hack Attack % 1 | . . . . . . . . 1 . . . . . . . . . . . . . . . . . . . . . . . . . . . . Hack Defense % 1 | . . . . . . . . 1 . . . . . . . . . . . . . . . . . . . . . . . . . . . . KI Resistance % 4 | 2 . . . . 2 . . . . . . . . . . . . . . . . . . . . . . . . . . . . . . . TH Resistance % 4 | 1 . . 1 . . . 1 . 1 . . . . . . . . . . . . . . . . . . . . . . . . . . . KI Damage % 1 | . . . . . . . . . . . . . . . . . . . . . . 1 . . . . . . . . . . . . . . Protomatter Created 9618 | . 49 . 244 16 91 . 186 306 373 194 575 . . 235 213 116 569 493 255 149 . 348 505 164 499 592 502 . 433 80 45 644 . 868 152 722 Integrity Restored 17604 | . 139 . 564 210 273 . 402 739 805 284 1189 . 116 881 731 369 1028 642 634 247 159 163 929 42 461 662 1242 . 565 220 53 1158 . 812 210 1675 Core 13644 | . 106 . 561 78 273 . 402 526 594 242 918 . 30 765 690 369 622 422 474 65 97 128 739 36 329 647 726 . 415 34 32 921 . 628 147 1628 Parts 3960 | . 33 . 3 132 . . . 213 211 42 271 . 86 116 41 . 406 220 160 182 62 35 190 6 132 15 516 . 150 186 21 237 . 184 63 47 Protomatter Decayed 4909 | . . . 251 . . . 52 23 66 96 229 . . 63 15 . 221 274 483 394 4 409 111 32 454 332 72 . 218 7 45 156 . 515 67 320 Game ------ Seed DynamicChainImmobilizer Manual? 0 Play Time 05:19:29 Cumulative 420.5 hours Start 2021.06.17 @ 02:22:58 End 2021.06.17 @ 13:07:26 Sessions 5 Manual Loads 0 Difficulty Rogue Special Mode Winter2019/RPGLIKE Game No. 158 Rogue 158 Adventurer 0 Explorer 0 Win Type 2 Total 30 Types 24/1/4/1/0/0/0/0/0 Lore% 83 Gallery% 91 Achievement% 77 Wizard Run 0 Options --------- ASCII 0 Keyboard 0 Movement Mouse Keybinds 0 Fullscreen 2 Font 12/Smallcaps Map View 83x54 Tactical HUD 1 Map Filters NONE Filters NONE Steam X RUN: 6eb9e465-7f5b-4e6f-bc63-30cdd3646aae